Department Family,Entity,Date Paid,Expense Type,Expense Area,Supplier,Transaction Number,Amount (�),Supplier VAT Registration Number,
BEIS,Met Office,2023-03-08,06 ACCOMMODATION,CHIEF FINANCIAL OFFICER,ABOVE THE REST COMMERCIAL CLEANING LTD,477129,178,166969348,
BEIS,Met Office,2023-03-08,06 ACCOMMODATION,CHIEF FINANCIAL OFFICER,ABOVE THE REST COMMERCIAL CLEANING LTD,477129,387,166969348,
BEIS,Met Office,2023-03-14,11 SERVICES,CHIEF FINANCIAL OFFICER,ACTIVE PEST MANAGEMENT,477405,86.1,791419116,
BEIS,Met Office,2023-03-27,SOFTWARE LICENCES,CHIEF FINANCIAL OFFICER,ADVANCED BUSINESS SOLUTIONS LTD,476666,-7012.5,927547983,
BEIS,Met Office,2023-03-27,08 SOFTWARE LICENCES,CHIEF FINANCIAL OFFICER,ADVANCED BUSINESS SOLUTIONS LTD,477913,-998.3,927547983,
BEIS,Met Office,2023-03-27,08 SOFTWARE LICENCES,CHIEF FINANCIAL OFFICER,ADVANCED BUSINESS SOLUTIONS LTD,476923,62747.8,927547983,
BEIS,Met Office,2023-03-06,03 STAFF COSTS T&S,CHIEF FINANCIAL OFFICER,ALLSTAR BUSINESS SOLUTIONS LTD,477074,2380.12,747880191,
BEIS,Met Office,2023-03-17,03 STAFF COSTS T&S,CHIEF FINANCIAL OFFICER,ALLSTAR BUSINESS SOLUTIONS LTD,477597,2802.66,747880191,
BEIS,Met Office,2023-03-06,03 STAFF COSTS T&S,CHIEF FINANCIAL OFFICER,APPLE CENTRAL TAXIS,476145,-1160.5,449238720,
BEIS,Met Office,2023-03-06,03 STAFF COSTS T&S,CHIEF FINANCIAL OFFICER,APPLE CENTRAL TAXIS,476139,1130.5,449238720,
BEIS,Met Office,2023-03-06,03 STAFF COSTS T&S,CHIEF FINANCIAL OFFICER,APPLE CENTRAL TAXIS,477061,1737.5,449238720,
BEIS,Met Office,2023-03-02,11 SERVICES,CHIEF FINANCIAL OFFICER,Ashfords Llp,476925,440,844502439,
BEIS,Met Office,2023-03-17,11 SERVICES,CHIEF FINANCIAL OFFICER,BABBLE CLOUD LIMITED,477581,952.52,GB206270049,
BEIS,Met Office,2023-03-30,13 MISCELLANEOUS,CHIEF FINANCIAL OFFICER,BANNER GROUP LIMITED,477916,6.74,GB391085740,
BEIS,Met Office,2023-03-14,13 MISCELLANEOUS,CHIEF FINANCIAL OFFICER,BANNER GROUP LIMITED,477466,58.17,GB391085740,
BEIS,Met Office,2023-03-16,06 ACCOMMODATION,CHIEF FINANCIAL OFFICER,BIDVEST NOONAN UK LTD,477506,1,GB847176988,
BEIS,Met Office,2023-03-16,06 ACCOMMODATION,CHIEF FINANCIAL OFFICER,BIDVEST NOONAN UK LTD,477506,1,GB847176988,
BEIS,Met Office,2023-03-29,06 ACCOMMODATION,CHIEF FINANCIAL OFFICER,BIDVEST NOONAN UK LTD,477911,1,GB847176988,
BEIS,Met Office,2023-03-29,06 ACCOMMODATION,CHIEF FINANCIAL OFFICER,BIDVEST NOONAN UK LTD,477911,1,GB847176988,
BEIS,Met Office,2023-03-30,06 ACCOMMODATION,CHIEF FINANCIAL OFFICER,BIDVEST NOONAN UK LTD,477912,1,GB847176988,
BEIS,Met Office,2023-03-30,06 ACCOMMODATION,CHIEF FINANCIAL OFFICER,BIDVEST NOONAN UK LTD,477912,1,GB847176988,
BEIS,Met Office,2023-03-16,06 ACCOMMODATION,CHIEF FINANCIAL OFFICER,BIDVEST NOONAN UK LTD,477506,68.61,GB847176988,
BEIS,Met Office,2023-03-29,06 ACCOMMODATION,CHIEF FINANCIAL OFFICER,BIDVEST NOONAN UK LTD,477911,455.31,GB847176988,
BEIS,Met Office,2023-03-02,06 ACCOMMODATION,CHIEF FINANCIAL OFFICER,BIDVEST NOONAN UK LTD,476926,457.31,GB847176988,
BEIS,Met Office,2023-03-30,06 ACCOMMODATION,CHIEF FINANCIAL OFFICER,BIDVEST NOONAN UK LTD,477912,1011.83,GB847176988,
BEIS,Met Office,2023-03-02,06 ACCOMMODATION,CHIEF FINANCIAL OFFICER,BIDVEST NOONAN UK LTD,476924,1013.83,GB847176988,
BEIS,Met Office,2023-03-01,06 ACCOMMODATION,CHIEF FINANCIAL OFFICER,Biffa Waste Services Ltd,476869,74.36,537911627,
BEIS,Met Office,2023-03-01,06 ACCOMMODATION,CHIEF FINANCIAL OFFICER,Biffa Waste Services Ltd,476870,82.03,537911627,
BEIS,Met Office,2023-03-01,06 ACCOMMODATION,CHIEF FINANCIAL OFFICER,Biffa Waste Services Ltd,476867,114.27,537911627,
BEIS,Met Office,2023-03-01,06 ACCOMMODATION,CHIEF FINANCIAL OFFICER,Biffa Waste Services Ltd,476873,336.31,537911627,
BEIS,Met Office,2023-03-01,06 ACCOMMODATION,CHIEF FINANCIAL OFFICER,Biffa Waste Services Ltd,476871,437.19,537911627,
BEIS,Met Office,2023-03-31,06 ACCOMMODATION,CHIEF FINANCIAL OFFICER,Biffa Waste Services Ltd,477951,448.44,537911627,
BEIS,Met Office,2023-03-01,06 ACCOMMODATION,CHIEF FINANCIAL OFFICER,Biffa Waste Services Ltd,476872,632.19,537911627,
BEIS,Met Office,2023-03-01,06 ACCOMMODATION,CHIEF FINANCIAL OFFICER,Biffa Waste Services Ltd,476868,658.97,537911627,
BEIS,Met Office,2023-03-01,06 ACCOMMODATION,CHIEF FINANCIAL OFFICER,Biffa Waste Services Ltd,476874,669.63,537911627,
BEIS,Met Office,2023-03-28,11 SERVICES,CHIEF FINANCIAL OFFICER,British Red Cross Society,477871,101,706926227,
BEIS,Met Office,2023-03-28,11 SERVICES,CHIEF FINANCIAL OFFICER,British Red Cross Society,477870,382,706926227,
BEIS,Met Office,2023-03-28,11 SERVICES,CHIEF FINANCIAL OFFICER,British Red Cross Society,477869,987,706926227,
BEIS,Met Office,2023-03-28,11 SERVICES,CHIEF FINANCIAL OFFICER,British Red Cross Society,477868,1342,706926227,
BEIS,Met Office,2023-03-16,11 SERVICES,CHIEF FINANCIAL OFFICER,BT CONFERENCING,477536,17.17,245719348,
BEIS,Met Office,2023-03-22,11 SERVICES,CHIEF FINANCIAL OFFICER,BT GLOBAL SERVICES,477738,776.28,245719348,
BEIS,Met Office,2023-03-02,11 SERVICES,CHIEF FINANCIAL OFFICER,BT plc,476949,2418.25,245719348,
BEIS,Met Office,2023-03-02,11 SERVICES,CHIEF FINANCIAL OFFICER,BT plc,476952,7217.16,245719348,
BEIS,Met Office,2023-03-20,06 ACCOMMODATION,CHIEF FINANCIAL OFFICER,BUSINESS SUPPORT CENTRE LTD,477585,44.54,927365208,
BEIS,Met Office,2023-03-23,06 ACCOMMODATION,CHIEF FINANCIAL OFFICER,BUSINESS SUPPORT CENTRE LTD,477803,1027.28,927365208,
BEIS,Met Office,2023-03-16,11 SERVICES,CHIEF FINANCIAL OFFICER,CABINET OFFICE - COF LEAD ACCOUNT,475188,-20275,-,
BEIS,Met Office,2023-03-20,06 ACCOMMODATION,CHIEF FINANCIAL OFFICER,CALOR GAS LIMITED,477606,578.23,207610984,
BEIS,Met Office,2023-03-17,13 MISCELLANEOUS,CHIEF FINANCIAL OFFICER,CANON UK LTD,477587,70.69,523797128,
BEIS,Met Office,2023-03-02,06 ACCOMMODATION,CHIEF FINANCIAL OFFICER,CARDIFF EXECUTIVE CENTRE LTD,476918,6.83,864497378,
BEIS,Met Office,2023-03-07,06 ACCOMMODATION,CHIEF FINANCIAL OFFICER,CARDIFF EXECUTIVE CENTRE LTD,477153,2470,864497378,
BEIS,Met Office,2023-03-24,06 ACCOMMODATION,CHIEF FINANCIAL OFFICER,CBRE MANAGED SERVICES LTD,477848,2606.52,853936883,
BEIS,Met Office,2023-03-24,06 ACCOMMODATION,CHIEF FINANCIAL OFFICER,CBRE MANAGED SERVICES LTD,477846,6218.13,853936883,
BEIS,Met Office,2023-03-30,06 ACCOMMODATION,CHIEF FINANCIAL OFFICER,CBRE MANAGED SERVICES LTD,477948,7318.85,853936883,
BEIS,Met Office,2023-03-30,06 ACCOMMODATION,CHIEF FINANCIAL OFFICER,CBRE MANAGED SERVICES LTD,477914,9459.05,853936883,
BEIS,Met Office,2023-03-24,11 SERVICES,CHIEF FINANCIAL OFFICER,CBRE MANAGED SERVICES LTD,477847,12049.38,853936883,
BEIS,Met Office,2023-03-02,PLANT AND EQUIPMENT,CHIEF FINANCIAL OFFICER,CBRE MANAGED SERVICES LTD,476817,15661.99,853936883,
BEIS,Met Office,2023-03-24,FIXTURE & FITTINGS,CHIEF FINANCIAL OFFICER,CBRE MANAGED SERVICES LTD,477841,18196.03,853936883,
BEIS,Met Office,2023-03-24,06 ACCOMMODATION,CHIEF FINANCIAL OFFICER,CBRE MANAGED SERVICES LTD,477842,23143.12,853936883,
BEIS,Met Office,2023-03-30,06 ACCOMMODATION,CHIEF FINANCIAL OFFICER,CBRE MANAGED SERVICES LTD,477915,27809.34,853936883,
BEIS,Met Office,2023-03-24,06 ACCOMMODATION,CHIEF FINANCIAL OFFICER,CBRE MANAGED SERVICES LTD,477843,28259.78,853936883,
BEIS,Met Office,2023-03-24,06 ACCOMMODATION,CHIEF FINANCIAL OFFICER,CBRE MANAGED SERVICES LTD,477844,29029.68,853936883,
BEIS,Met Office,2023-03-22,06 ACCOMMODATION,CHIEF FINANCIAL OFFICER,CBRE MANAGED SERVICES LTD,476704,47223.63,853936883,
BEIS,Met Office,2023-03-24,PLANT AND EQUIPMENT,CHIEF FINANCIAL OFFICER,CBRE MANAGED SERVICES LTD,477845,223996.43,853936883,
BEIS,Met Office,2023-03-22,08 SOFTWARE LICENCES,CHIEF FINANCIAL OFFICER,CEMAR,477723,850,915042161,
BEIS,Met Office,2023-03-21,06 ACCOMMODATION,CHIEF FINANCIAL OFFICER,Cheshire East Borough Council,477615,144.08,N/A,
BEIS,Met Office,2023-03-21,06 ACCOMMODATION,CHIEF FINANCIAL OFFICER,Cheshire East Borough Council,477614,1231.28,N/A,
BEIS,Met Office,2023-03-30,FIXTURE & FITTINGS,CHIEF FINANCIAL OFFICER,CMD LTD,477945,-16,927231433,
BEIS,Met Office,2023-03-30,FIXTURE & FITTINGS,CHIEF FINANCIAL OFFICER,CMD LTD,477945,16,927231433,
BEIS,Met Office,2023-03-30,FIXTURE & FITTINGS,CHIEF FINANCIAL OFFICER,CMD LTD,477945,22.92,927231433,
BEIS,Met Office,2023-03-30,FIXTURE & FITTINGS,CHIEF FINANCIAL OFFICER,CMD LTD,477946,30.56,927231433,
BEIS,Met Office,2023-03-30,FIXTURE & FITTINGS,CHIEF FINANCIAL OFFICER,CMD LTD,477945,55.23,927231433,
BEIS,Met Office,2023-03-30,FIXTURE & FITTINGS,CHIEF FINANCIAL OFFICER,CMD LTD,477946,92.05,927231433,
BEIS,Met Office,2023-03-30,FIXTURE & FITTINGS,CHIEF FINANCIAL OFFICER,CMD LTD,477945,305.04,927231433,
BEIS,Met Office,2023-03-30,FIXTURE & FITTINGS,CHIEF FINANCIAL OFFICER,CMD LTD,477946,406.72,927231433,
BEIS,Met Office,2023-03-08,06 ACCOMMODATION,CHIEF FINANCIAL OFFICER,CORBETT FARMS LTD,477302,100,133425301,
BEIS,Met Office,2023-03-30,06 ACCOMMODATION,CHIEF FINANCIAL OFFICER,CORONA ENERGY LTD,470238,12819.44,577704800,
BEIS,Met Office,2023-03-24,06 ACCOMMODATION,CHIEF FINANCIAL OFFICER,D&G OFFICE SERVICES LTD,477837,373.33,272997547,
BEIS,Met Office,2023-03-24,06 ACCOMMODATION,CHIEF FINANCIAL OFFICER,D&G OFFICE SERVICES LTD,477838,432,272997547,
BEIS,Met Office,2023-03-24,06 ACCOMMODATION,CHIEF FINANCIAL OFFICER,D&G OFFICE SERVICES LTD,477838,432,272997547,
BEIS,Met Office,2023-03-06,06 ACCOMMODATION,CHIEF FINANCIAL OFFICER,DALCOUR MACLAREN LTD,477094,1500,823 6484 20,
BEIS,Met Office,2023-03-07,06 ACCOMMODATION,CHIEF FINANCIAL OFFICER,DALCOUR MACLAREN LTD,477122,1500,823 6484 20,
BEIS,Met Office,2023-03-22,13 MISCELLANEOUS,CHIEF FINANCIAL OFFICER,DEMSTAR BUSINESS SOLUTIONS LTD,24676,114.56,10156145J,
BEIS,Met Office,2023-03-01,13 MISCELLANEOUS,CHIEF FINANCIAL OFFICER,DEMSTAR BUSINESS SOLUTIONS LTD,24631,141.5,10156145J,
BEIS,Met Office,2023-03-31,06 ACCOMMODATION,CHIEF FINANCIAL OFFICER,Devon County Council,478040,1925.81,142208113,
BEIS,Met Office,2023-03-31,06 ACCOMMODATION,CHIEF FINANCIAL OFFICER,Devon County Council,478039,3333.39,142208113,
BEIS,Met Office,2023-03-02,13 MISCELLANEOUS,CHIEF FINANCIAL OFFICER,EAST ANGLIAN WATER COOLER CO,476929,62.05,676668178,
BEIS,Met Office,2023-03-29,06 ACCOMMODATION,CHIEF FINANCIAL OFFICER,East Devon District Council,477799,5239.5,142218990,
BEIS,Met Office,2023-03-29,06 ACCOMMODATION,CHIEF FINANCIAL OFFICER,East Devon District Council,477802,234240,142218990,
BEIS,Met Office,2023-03-08,11 SERVICES,CHIEF FINANCIAL OFFICER,ECMWF,474293,28597.92,NOTVATREG,
BEIS,Met Office,2023-03-03,13 MISCELLANEOUS,CHIEF FINANCIAL OFFICER,EDEN SPRINGS UK LTD,476967,602.37,232160411,
BEIS,Met Office,2023-03-28,06 ACCOMMODATION,CHIEF FINANCIAL OFFICER,EDF ENERGY CUSTOMERS PLC,477899,-147084.75,523041202,
BEIS,Met Office,2023-03-28,06 ACCOMMODATION,CHIEF FINANCIAL OFFICER,EDF ENERGY CUSTOMERS PLC,477901,-147084.75,523041202,
BEIS,Met Office,2023-03-08,06 ACCOMMODATION,CHIEF FINANCIAL OFFICER,EDF ENERGY CUSTOMERS PLC,477113,-132395.02,523041202,
BEIS,Met Office,2023-03-28,06 ACCOMMODATION,CHIEF FINANCIAL OFFICER,EDF ENERGY CUSTOMERS PLC,477900,-132395.02,523041202,
BEIS,Met Office,2023-03-07,06 ACCOMMODATION,CHIEF FINANCIAL OFFICER,EDF ENERGY CUSTOMERS PLC,476767,7485.15,523041202,
BEIS,Met Office,2023-03-28,06 ACCOMMODATION,CHIEF FINANCIAL OFFICER,EDF ENERGY CUSTOMERS PLC,476835,132151.88,523041202,
BEIS,Met Office,2023-03-28,06 ACCOMMODATION,CHIEF FINANCIAL OFFICER,EDF ENERGY CUSTOMERS PLC,476834,132395.02,523041202,
BEIS,Met Office,2023-03-08,06 ACCOMMODATION,CHIEF FINANCIAL OFFICER,EDF ENERGY CUSTOMERS PLC,477116,133591.93,523041202,
BEIS,Met Office,2023-03-08,06 ACCOMMODATION,CHIEF FINANCIAL OFFICER,EDF ENERGY CUSTOMERS PLC,477114,144411.52,523041202,
BEIS,Met Office,2023-03-28,06 ACCOMMODATION,CHIEF FINANCIAL OFFICER,EDF ENERGY CUSTOMERS PLC,476837,145700.86,523041202,
BEIS,Met Office,2023-03-28,06 ACCOMMODATION,CHIEF FINANCIAL OFFICER,EDF ENERGY CUSTOMERS PLC,476836,147084.75,523041202,
BEIS,Met Office,2023-03-08,06 ACCOMMODATION,CHIEF FINANCIAL OFFICER,EDF ENERGY CUSTOMERS PLC,477115,450427.92,523041202,
BEIS,Met Office,2023-03-08,06 ACCOMMODATION,CHIEF FINANCIAL OFFICER,EDF ENERGY CUSTOMERS PLC,476766,463177.06,523041202,
BEIS,Met Office,2023-03-08,11 SERVICES,CHIEF FINANCIAL OFFICER,EIR,24675,54.67,4736919B,
BEIS,Met Office,2023-03-08,03 STAFF COSTS T&S,CHIEF FINANCIAL OFFICER,ENTERPRISE RENT A CAR UK LTD,477301,100.94,215557314,
BEIS,Met Office,2023-03-21,03 STAFF COSTS T&S,CHIEF FINANCIAL OFFICER,ENTERPRISE RENT A CAR UK LTD,477719,1806.32,215557314,
BEIS,Met Office,2023-03-07,03 STAFF COSTS T&S,CHIEF FINANCIAL OFFICER,ENTERPRISE RENT A CAR UK LTD,477146,2462.72,215557314,
BEIS,Met Office,2023-03-14,03 STAFF COSTS T&S,CHIEF FINANCIAL OFFICER,ENTERPRISE RENT A CAR UK LTD,477462,2603.71,215557314,
BEIS,Met Office,2023-03-27,03 STAFF COSTS T&S,CHIEF FINANCIAL OFFICER,ENTERPRISE RENT A CAR UK LTD,477904,4780.56,215557314,
BEIS,Met Office,2023-03-02,06 ACCOMMODATION,CHIEF FINANCIAL OFFICER,Exeter City Council,465753,140288,142335594,
BEIS,Met Office,2023-03-15,06 ACCOMMODATION,CHIEF FINANCIAL OFFICER,EXETER SCIENCE PARK LIMITED,477570,-2619.75,163049812,
BEIS,Met Office,2023-03-07,11 SERVICES,CHIEF FINANCIAL OFFICER,EXPONENTIAL-E,473996,-2186.18,GB798572653,
BEIS,Met Office,2023-03-07,11 SERVICES,CHIEF FINANCIAL OFFICER,EXPONENTIAL-E,477135,2256.32,GB798572653,
BEIS,Met Office,2023-03-13,11 SERVICES,CHIEF FINANCIAL OFFICER,GAMMA BUSINESS COMMUNICATIONS LTD,477401,570.83,823820344,
BEIS,Met Office,2023-03-08,11 SERVICES,CHIEF FINANCIAL OFFICER,GB GROUP PLC,477255,98.41,539716218,
BEIS,Met Office,2023-03-17,11 SERVICES,CHIEF FINANCIAL OFFICER,GB GROUP PLC,477595,116.51,539716218,
BEIS,Met Office,2023-03-08,11 SERVICES,CHIEF FINANCIAL OFFICER,GB GROUP PLC,477254,431.79,539716218,
BEIS,Met Office,2023-03-27,11 SERVICES,CHIEF FINANCIAL OFFICER,GB GROUP PLC,477594,3000,539716218,
BEIS,Met Office,2023-03-13,11 SERVICES,CHIEF FINANCIAL OFFICER,GIBRALTAR NYNEX COMMUNICATIONS LTD,477359,660,NOVAT,
BEIS,Met Office,2023-03-16,06 ACCOMMODATION,CHIEF FINANCIAL OFFICER,GOVERNMENT PROPERTY AGENCY,477472,10243.01,888 8508 47,
BEIS,Met Office,2023-03-13,06 ACCOMMODATION,CHIEF FINANCIAL OFFICER,GREENSTAR CLEANERS LTD,477427,204.6,492376222,
BEIS,Met Office,2023-03-29,06 ACCOMMODATION,CHIEF FINANCIAL OFFICER,GREENSTAR CLEANERS LTD,477943,204.6,492376222,
BEIS,Met Office,2023-03-31,06 ACCOMMODATION,CHIEF FINANCIAL OFFICER,GROSVENOR SYSTEMS LTD,478069,724.5,342873151,
BEIS,Met Office,2023-03-22,FIXTURE & FITTINGS,CHIEF FINANCIAL OFFICER,GRS BUILDING SERVICES SOUTH-WEST,477755,1735.87,-,
BEIS,Met Office,2023-03-13,06 ACCOMMODATION,CHIEF FINANCIAL OFFICER,GRS BUILDING SERVICES SOUTH-WEST,477407,8429.46,-,
BEIS,Met Office,2023-03-27,06 ACCOMMODATION,CHIEF FINANCIAL OFFICER,Health & Safety Laboratory,477498,-26700,888810177,
BEIS,Met Office,2023-03-27,06 ACCOMMODATION,CHIEF FINANCIAL OFFICER,Health & Safety Laboratory,454799,26700,888810177,
BEIS,Met Office,2023-03-17,11 SERVICES,CHIEF FINANCIAL OFFICER,INTEROUTE COMMUNICATIONS LIMITED,477588,7100,832 7071 39,
BEIS,Met Office,2023-03-16,11 SERVICES,CHIEF FINANCIAL OFFICER,JERSEY TELECOM,477535,1287.21,NOTVATREG,
BEIS,Met Office,2023-03-30,06 ACCOMMODATION,CHIEF FINANCIAL OFFICER,Lars Communications Ltd,478030,3622.8,531463858,
BEIS,Met Office,2023-03-16,06 ACCOMMODATION,CHIEF FINANCIAL OFFICER,Lars Communications Ltd,477409,15012.15,531463858,
BEIS,Met Office,2023-03-02,11 SERVICES,CHIEF FINANCIAL OFFICER,LEASEDRIVE RENTAL MANAGEMENT LTD,476917,1293.98,733546040,
BEIS,Met Office,2023-03-13,06 ACCOMMODATION,CHIEF FINANCIAL OFFICER,LHR BUSINESS SUPPORT CENTRE LTD,477385,3062.92,927365404,
BEIS,Met Office,2023-03-02,11 SERVICES,CHIEF FINANCIAL OFFICER,LICENCE BUREAU LTD,476951,37.5,820219467,
BEIS,Met Office,2023-03-01,06 ACCOMMODATION,CHIEF FINANCIAL OFFICER,LISNEY LIMITED,476878,3898.5,-,
BEIS,Met Office,2023-03-13,06 ACCOMMODATION,CHIEF FINANCIAL OFFICER,MARK EDWARDS,477426,600,-,
BEIS,Met Office,2023-03-23,11 SERVICES,CHIEF FINANCIAL OFFICER,MAWASEM LTD,477800,0,197694731,
BEIS,Met Office,2023-03-30,11 SERVICES,CHIEF FINANCIAL OFFICER,MAWASEM LTD,477801,179158.1,197694731,
BEIS,Met Office,2023-03-23,11 SERVICES,CHIEF FINANCIAL OFFICER,MAWASEM LTD,477800,198855.03,197694731,
BEIS,Met Office,2023-03-22,06 ACCOMMODATION,CHIEF FINANCIAL OFFICER,Mitie Landscapes Ltd,477679,1201.63,GB 416 706 654,
BEIS,Met Office,2023-03-21,06 ACCOMMODATION,CHIEF FINANCIAL OFFICER,Mitie Landscapes Ltd,477680,2062.5,GB 416 706 654,
BEIS,Met Office,2023-03-21,06 ACCOMMODATION,CHIEF FINANCIAL OFFICER,Mitie Landscapes Ltd,477674,4750,GB 416 706 654,
BEIS,Met Office,2023-03-08,06 ACCOMMODATION,CHIEF FINANCIAL OFFICER,MITIE SECURITY LTD,477157,911.25,416706654,
BEIS,Met Office,2023-03-08,11 SERVICES,CHIEF FINANCIAL OFFICER,MITIE SECURITY LTD,477158,1234.56,416706654,
BEIS,Met Office,2023-03-03,11 SERVICES,CHIEF FINANCIAL OFFICER,MITIE SECURITY LTD,474186,1675.2,416706654,
BEIS,Met Office,2023-03-03,11 SERVICES,CHIEF FINANCIAL OFFICER,MITIE SECURITY LTD,473094,3685.44,416706654,
BEIS,Met Office,2023-03-20,11 SERVICES,CHIEF FINANCIAL OFFICER,Morton Fraser LLP,477668,50,269129336,
BEIS,Met Office,2023-03-02,11 SERVICES,CHIEF FINANCIAL OFFICER,Morton Fraser LLP,476971,78,269129336,
BEIS,Met Office,2023-03-20,11 SERVICES,CHIEF FINANCIAL OFFICER,Morton Fraser LLP,477671,90.5,269129336,
BEIS,Met Office,2023-03-20,11 SERVICES,CHIEF FINANCIAL OFFICER,Morton Fraser LLP,477676,125,269129336,
BEIS,Met Office,2023-03-20,11 SERVICES,CHIEF FINANCIAL OFFICER,Morton Fraser LLP,477669,262.5,269129336,
BEIS,Met Office,2023-03-13,06 ACCOMMODATION,CHIEF FINANCIAL OFFICER,Morton Fraser LLP,477431,1875,269129336,
BEIS,Met Office,2023-03-16,06 ACCOMMODATION,CHIEF FINANCIAL OFFICER,MOUNT CHARLES GROUP LTD,477390,576.36,517116274,
BEIS,Met Office,2023-03-31,06 ACCOMMODATION,CHIEF FINANCIAL OFFICER,National Oceanography Centre,477123,29285.09,GB 338 5487 64,
BEIS,Met Office,2023-03-16,13 MISCELLANEOUS,CHIEF FINANCIAL OFFICER,NORSCOTT VENDING SERVICES LTD,477568,77.7,751402071,
BEIS,Met Office,2023-03-02,13 MISCELLANEOUS,CHIEF FINANCIAL OFFICER,NORSCOTT VENDING SERVICES LTD,476933,85,751402071,
BEIS,Met Office,2023-03-02,06 ACCOMMODATION,CHIEF FINANCIAL OFFICER,OCS Group UK Limited,476875,68215.19,GB238034379,
BEIS,Met Office,2023-03-02,06 ACCOMMODATION,CHIEF FINANCIAL OFFICER,OCS Group UK Limited,476875,110148.22,GB238034379,
BEIS,Met Office,2023-03-31,06 ACCOMMODATION,CHIEF FINANCIAL OFFICER,OCS Group UK Limited,478044,150171.44,GB238034379,
BEIS,Met Office,2023-03-22,11 SERVICES,CHIEF FINANCIAL OFFICER,OPEN TEXT UK LTD,477681,100,837871308,
BEIS,Met Office,2023-03-22,11 SERVICES,CHIEF FINANCIAL OFFICER,OPEN TEXT UK LTD,477682,100,837871308,
BEIS,Met Office,2023-03-22,11 SERVICES,CHIEF FINANCIAL OFFICER,OPEN TEXT UK LTD,477684,100,837871308,
BEIS,Met Office,2023-03-08,06 ACCOMMODATION,CHIEF FINANCIAL OFFICER,OUR LADY OF BETHLEHEM ABBEY,477295,112,-,
BEIS,Met Office,2023-03-16,11 SERVICES,CHIEF FINANCIAL OFFICER,POSTURITE (UK) LTD,477499,19.22,583565114,
BEIS,Met Office,2023-03-16,11 SERVICES,CHIEF FINANCIAL OFFICER,POSTURITE (UK) LTD,476774,50,583565114,
BEIS,Met Office,2023-03-16,11 SERVICES,CHIEF FINANCIAL OFFICER,POSTURITE (UK) LTD,477235,50,583565114,
BEIS,Met Office,2023-03-16,11 SERVICES,CHIEF FINANCIAL OFFICER,POSTURITE (UK) LTD,477526,50,583565114,
BEIS,Met Office,2023-03-24,11 SERVICES,CHIEF FINANCIAL OFFICER,POSTURITE (UK) LTD,477798,50,583565114,
BEIS,Met Office,2023-03-28,11 SERVICES,CHIEF FINANCIAL OFFICER,POSTURITE (UK) LTD,477874,50,583565114,
BEIS,Met Office,2023-03-16,11 SERVICES,CHIEF FINANCIAL OFFICER,POSTURITE (UK) LTD,477500,71.89,583565114,
BEIS,Met Office,2023-03-16,11 SERVICES,CHIEF FINANCIAL OFFICER,POSTURITE (UK) LTD,477527,112.21,583565114,
BEIS,Met Office,2023-03-16,11 SERVICES,CHIEF FINANCIAL OFFICER,POSTURITE (UK) LTD,477528,122.77,583565114,
BEIS,Met Office,2023-03-16,11 SERVICES,CHIEF FINANCIAL OFFICER,POSTURITE (UK) LTD,477552,288.93,583565114,
BEIS,Met Office,2023-03-16,11 SERVICES,CHIEF FINANCIAL OFFICER,POSTURITE (UK) LTD,477393,834.53,583565114,
BEIS,Met Office,2023-03-24,11 SERVICES,CHIEF FINANCIAL OFFICER,POSTURITE (UK) LTD,477797,1048.71,583565114,
BEIS,Met Office,2023-03-08,06 ACCOMMODATION,CHIEF FINANCIAL OFFICER,POWER NI ENERGY LTD,477106,1116.02,617518142,
BEIS,Met Office,2023-03-27,03 STAFF COSTS T&S,CHIEF FINANCIAL OFFICER,RAINBOW CITY TAXIS,477905,5.9,724295039,
BEIS,Met Office,2023-03-22,06 ACCOMMODATION,CHIEF FINANCIAL OFFICER,REDACTED � PERSONAL DATA,477145,520,-,
BEIS,Met Office,2023-03-08,06 ACCOMMODATION,CHIEF FINANCIAL OFFICER,REDACTED � PERSONAL DATA,477294,2921,-,
BEIS,Met Office,2023-03-20,06 ACCOMMODATION,CHIEF FINANCIAL OFFICER,REDACTED � PERSONAL DATA,477702,4185.25,001874305,
BEIS,Met Office,2023-03-08,06 ACCOMMODATION,CHIEF FINANCIAL OFFICER,REDACTED � PERSONAL DATA,477300,9443,619055736,
BEIS,Met Office,2023-03-07,06 ACCOMMODATION,CHIEF FINANCIAL OFFICER,REDACTED � PERSONAL DATA,477141,13085,233585557,
BEIS,Met Office,2023-03-08,06 ACCOMMODATION,CHIEF FINANCIAL OFFICER,RIVER RIDGE,477143,117.2,176286083,
BEIS,Met Office,2023-03-10,06 ACCOMMODATION,CHIEF FINANCIAL OFFICER,Rsk Adas Ltd,394143,-840,256435886,
BEIS,Met Office,2023-03-10,06 ACCOMMODATION,CHIEF FINANCIAL OFFICER,Rsk Adas Ltd,394142,289.58,256435886,
BEIS,Met Office,2023-03-10,06 ACCOMMODATION,CHIEF FINANCIAL OFFICER,Rsk Adas Ltd,477452,434.58,256435886,
BEIS,Met Office,2023-03-14,06 ACCOMMODATION,CHIEF FINANCIAL OFFICER,SAFESTORE LTD,477467,3430.33,722887607,
BEIS,Met Office,2023-03-07,06 ACCOMMODATION,CHIEF FINANCIAL OFFICER,SHARED ACCESS LTD,477124,7759.29,920672730,
BEIS,Met Office,2023-03-16,06 ACCOMMODATION,CHIEF FINANCIAL OFFICER,SHETLAND CLEANING SERVICES,477537,769.57,430028404,
BEIS,Met Office,2023-03-16,06 ACCOMMODATION,CHIEF FINANCIAL OFFICER,Shetland Islands Council,477548,1034.8,267858304,
BEIS,Met Office,2023-03-21,06 ACCOMMODATION,CHIEF FINANCIAL OFFICER,SOUTH OXFORDSHIRE DISTRICT COUNCIL,477610,2095.8,-,
BEIS,Met Office,2023-03-31,06 ACCOMMODATION,CHIEF FINANCIAL OFFICER,South West Water Ltd,478041,57.52,236873674,
BEIS,Met Office,2023-03-20,06 ACCOMMODATION,CHIEF FINANCIAL OFFICER,South West Water Ltd,477586,7259.67,236873674,
BEIS,Met Office,2023-03-14,11 SERVICES,CHIEF FINANCIAL OFFICER,SURE SOUTH ATLANTIC LTD,477388,785.4,-,
BEIS,Met Office,2023-03-16,11 SERVICES,CHIEF FINANCIAL OFFICER,SURE SOUTH ATLANTIC LTD,477553,2054.6,NOVATREG,
BEIS,Met Office,2023-03-14,11 SERVICES,CHIEF FINANCIAL OFFICER,SURE SOUTH ATLANTIC LTD,477386,4888.86,-,
BEIS,Met Office,2023-03-16,11 SERVICES,CHIEF FINANCIAL OFFICER,SURE SOUTH ATLANTIC LTD (ST HELENA),477512,1285,30005,
BEIS,Met Office,2023-03-01,11 SERVICES,CHIEF FINANCIAL OFFICER,SWISSCOM (SCHWEIZ) AG,476463,98.38,-,
BEIS,Met Office,2023-03-22,11 SERVICES,CHIEF FINANCIAL OFFICER,SWISSCOM (SCHWEIZ) AG,477433,98.88,-,
BEIS,Met Office,2023-03-13,11 SERVICES,CHIEF FINANCIAL OFFICER,TELEFONICA O2 UK LIMITED,477389,0,778603785,
BEIS,Met Office,2023-03-13,11 SERVICES,CHIEF FINANCIAL OFFICER,TELEFONICA O2 UK LIMITED,477389,3443.6,778603785,
BEIS,Met Office,2023-03-16,11 SERVICES,CHIEF FINANCIAL OFFICER,TELIA FINLAND OYJ,24711,228.86,FI14756079,
BEIS,Met Office,2023-03-08,06 ACCOMMODATION,CHIEF FINANCIAL OFFICER,TENNIE FACILITIES PROPERTY MANAGEMENT LTD,477151,165.72,982055803,
BEIS,Met Office,2023-03-29,08 SOFTWARE LICENCES,CHIEF FINANCIAL OFFICER,TIMEWATCH PLC,475270,9000,461555250,
BEIS,Met Office,2023-03-29,08 SOFTWARE LICENCES,CHIEF FINANCIAL OFFICER,TIMEWATCH PLC,475270,177650,461555250,
BEIS,Met Office,2023-03-08,06 ACCOMMODATION,CHIEF FINANCIAL OFFICER,TOP RANK CLEANING SERVICES LTD,477130,937,-,
BEIS,Met Office,2023-03-07,06 ACCOMMODATION,CHIEF FINANCIAL OFFICER,TOTAL GAS & POWER LIMITED,474051,718.66,689638949,
BEIS,Met Office,2023-03-20,06 ACCOMMODATION,CHIEF FINANCIAL OFFICER,TOTAL GAS & POWER LIMITED,477596,929.26,689638949,
BEIS,Met Office,2023-03-07,06 ACCOMMODATION,CHIEF FINANCIAL OFFICER,TOTAL GAS & POWER LIMITED,474052,17131.62,689638949,
BEIS,Met Office,2023-03-16,06 ACCOMMODATION,CHIEF FINANCIAL OFFICER,TOTAL GAS & POWER LIMITED,477551,17652.77,689638949,
BEIS,Met Office,2023-03-31,06 ACCOMMODATION,CHIEF FINANCIAL OFFICER,UK CENTRE FOR ECOLOGY & HYDROLOGY (UKCEH),478073,2772.65,336940192,
BEIS,Met Office,2023-03-16,06 ACCOMMODATION,CHIEF FINANCIAL OFFICER,VICKERY HOLMAN,477532,4365.62,943875678,
BEIS,Met Office,2023-03-08,11 SERVICES,CHIEF FINANCIAL OFFICER,Vodafone Limited,477237,532.3,569953277,
BEIS,Met Office,2023-03-08,11 SERVICES,CHIEF FINANCIAL OFFICER,Vodafone Limited,477238,3993.45,569953277,
BEIS,Met Office,2023-03-02,11 SERVICES,CHIEF FINANCIAL OFFICER,WEBEX COMMUNICATIONS UK LTD,476852,209.92,815974302,
BEIS,Met Office,2023-03-10,11 SERVICES,CHIEF FINANCIAL OFFICER,WOMBLE BOND DICKINSON (UK) LLP,477193,11688,GB123393627,
BEIS,Met Office,2023-03-28,11 SERVICES,CHIEF FINANCIAL OFFICER,WOMBLE BOND DICKINSON (UK) LLP,477942,13500,GB123393627,
BEIS,Met Office,2023-03-21,06 ACCOMMODATION,CHIEF FINANCIAL OFFICER,WYCHAVON DISTRICT COUNCIL,477605,3248.49,-,
BEIS,Met Office,2023-03-20,11 SERVICES,CHIEF FINANCIAL OFFICER,XEIAD,477712,4474.97,811321091,
BEIS,Met Office,2023-03-20,06 ACCOMMODATION,CHIEF FINANCIAL OFFICER,XEIAD,477710,7501.75,811321091,
BEIS,Met Office,2023-03-20,06 ACCOMMODATION,CHIEF FINANCIAL OFFICER,XEIAD,477711,8447.76,811321091,
BEIS,Met Office,2023-03-10,11 SERVICES,MARKETS,ACCELERATION EMARKETING,477402,2500,848940776,
BEIS,Met Office,2023-03-03,11 SERVICES,MARKETS,ADOPSTAR,477042,1250,115036848,
BEIS,Met Office,2023-03-21,11 SERVICES,MARKETS,APPLIED SATELLITE TECHNOLOGY SYSTEMS LTD,476663,34.23,720108683,
BEIS,Met Office,2023-03-08,12 INTERNATIONAL,MARKETS,APPLIED SATELLITE TECHNOLOGY SYSTEMS LTD,473800,35.86,720108683,
BEIS,Met Office,2023-03-21,11 SERVICES,MARKETS,APPLIED SATELLITE TECHNOLOGY SYSTEMS LTD,476662,68.46,720108683,
BEIS,Met Office,2023-03-21,11 SERVICES,MARKETS,APPLIED SATELLITE TECHNOLOGY SYSTEMS LTD,476721,195.92,720108683,
BEIS,Met Office,2023-03-06,11 SERVICES,MARKETS,BITPOD LIMITED,477050,7360.6,124 9359 03,
BEIS,Met Office,2023-03-29,11 SERVICES,MARKETS,BJSS LIMITED,477865,718.75,613295452,
BEIS,Met Office,2023-03-29,11 SERVICES,MARKETS,BJSS LIMITED,477880,937.5,613295452,
BEIS,Met Office,2023-03-10,11 SERVICES,MARKETS,BJSS LIMITED,477246,5375,613295452,
BEIS,Met Office,2023-03-08,11 SERVICES,MARKETS,BJSS LIMITED,477209,64978.75,613295452,
BEIS,Met Office,2023-03-08,11 SERVICES,MARKETS,BMG RESEARCH LTD,475588,-8695,580 6606 32,
BEIS,Met Office,2023-03-08,11 SERVICES,MARKETS,BMG RESEARCH LTD,475307,8695,580 6606 32,
BEIS,Met Office,2023-03-08,11 SERVICES,MARKETS,BMG RESEARCH LTD,477247,18181.25,580 6606 32,
BEIS,Met Office,2023-03-24,11 SERVICES,MARKETS,BMG RESEARCH LTD,477809,36362.5,580 6606 32,
BEIS,Met Office,2023-03-31,11 SERVICES,MARKETS,BRYERS LLP,478034,0,609635917,
BEIS,Met Office,2023-03-02,11 SERVICES,MARKETS,BRYERS LLP,476877,258.33,609635917,
BEIS,Met Office,2023-03-31,11 SERVICES,MARKETS,BRYERS LLP,478034,648,609635917,
BEIS,Met Office,2023-03-16,11 SERVICES,MARKETS,CACI LTD,477511,6000.12,380609841,
BEIS,Met Office,2023-03-06,11 SERVICES,MARKETS,CACI LTD,477096,7039.73,380609841,
BEIS,Met Office,2023-03-06,11 SERVICES,MARKETS,CACI LTD,477097,38670.76,380609841,
BEIS,Met Office,2023-03-10,11 SERVICES,MARKETS,Cgi It Uk Limited,475048,2664.84,232615194,
BEIS,Met Office,2023-03-10,11 SERVICES,MARKETS,Cgi It Uk Limited,475048,62047.89,232615194,
BEIS,Met Office,2023-03-01,11 SERVICES,MARKETS,Cgi It Uk Limited,476828,187599.17,232615194,
BEIS,Met Office,2023-03-10,11 SERVICES,MARKETS,Cgi It Uk Limited,475048,219933.32,232615194,
BEIS,Met Office,2023-03-23,11 SERVICES,MARKETS,CLAREMONT MARKETING COMMUNICATIONS LTD,477790,28352,429442584,
BEIS,Met Office,2023-03-28,11 SERVICES,MARKETS,CULVERWELL ASSOCIATES LTD,477935,3000,386 6119 65,
BEIS,Met Office,2023-03-16,12 INTERNATIONAL,MARKETS,ECMWF,474883,8406821,NOTVATREG,
BEIS,Met Office,2023-03-08,06 ACCOMMODATION,MARKETS,EGREMONT RANGERS ARLFC,477296,285,-,
BEIS,Met Office,2023-03-16,11 SERVICES,MARKETS,Esri (Uk) Ltd,477578,4368,787430791,
BEIS,Met Office,2023-03-06,11 SERVICES,MARKETS,Esri (Uk) Ltd,477088,4995.2,787430791,
BEIS,Met Office,2023-03-06,11 SERVICES,MARKETS,Esri (Uk) Ltd,477083,10586,787430791,
BEIS,Met Office,2023-03-29,13 MISCELLANEOUS,MARKETS,Eumetsat,24704,7058.34,VE,
BEIS,Met Office,2023-03-29,13 MISCELLANEOUS,MARKETS,Eumetsat,24705,7058.34,VE,
BEIS,Met Office,2023-03-08,12 INTERNATIONAL,MARKETS,EUROPEAN METEOROLOGICAL SOCIETY,24654,1098.48,-,
BEIS,Met Office,2023-03-02,12 INTERNATIONAL,MARKETS,FOXSTONES TRAINING AND LEARNING,476908,2950,-,
BEIS,Met Office,2023-03-01,08 SOFTWARE LICENCES,MARKETS,"IBL SOFTWARE ENGINEERING, SPOL S.R.O.",24646,1616.96,SK2020241883,
BEIS,Met Office,2023-03-22,08 SOFTWARE LICENCES,MARKETS,"IBL SOFTWARE ENGINEERING, SPOL S.R.O.",24379,101929.77,SK2020241883,
BEIS,Met Office,2023-03-03,12 INTERNATIONAL,MARKETS,IDEMS INTERNATIONAL COMMUNITY INTEREST CO,477046,5000,-,
BEIS,Met Office,2023-03-08,11 SERVICES,MARKETS,"INTELLOVATIONS, LLC",10974,1797.2,-,
BEIS,Met Office,2023-03-08,11 SERVICES,MARKETS,IO ANALYTICS,477206,11200,-,
BEIS,Met Office,2023-03-08,11 SERVICES,MARKETS,JCT Ltd,476934,3868,714 3761 44,
BEIS,Met Office,2023-03-08,12 INTERNATIONAL,MARKETS,MACITECHSY SOLUTIONS,477128,1280,-,
BEIS,Met Office,2023-03-08,11 SERVICES,MARKETS,MERCATOR OCEAN INTERNATIONAL,24685,35840.49,-,
BEIS,Met Office,2023-03-02,11 SERVICES,MARKETS,National Oceanography Centre,476948,30429.8,GB 338 5487 64,
BEIS,Met Office,2023-03-08,11 SERVICES,MARKETS,OXALIS-SCOP,24684,8314.72,-,
BEIS,Met Office,2023-03-16,11 SERVICES,MARKETS,PLOUGHSHARE INNOVATIONS,477547,22098,878305296,
BEIS,Met Office,2023-03-31,11 SERVICES,MARKETS,PLOUGHSHARE INNOVATIONS,478033,22098,878305296,
BEIS,Met Office,2023-03-29,12 INTERNATIONAL,MARKETS,REDACTED � PERSONAL DATA,10975,0.84,-,
BEIS,Met Office,2023-03-23,06 ACCOMMODATION,MARKETS,REDACTED � PERSONAL DATA,477298,400,-,
BEIS,Met Office,2023-03-08,06 ACCOMMODATION,MARKETS,REDACTED � PERSONAL DATA,477299,500,-,
BEIS,Met Office,2023-03-01,12 INTERNATIONAL,MARKETS,REDACTED � PERSONAL DATA,10941,2905.87,-,
BEIS,Met Office,2023-03-29,12 INTERNATIONAL,MARKETS,REDACTED � PERSONAL DATA,10975,2924.83,-,
BEIS,Met Office,2023-03-08,06 ACCOMMODATION,MARKETS,RESPECT CREMATORIA LTD,477297,35,-,
BEIS,Met Office,2023-03-08,06 ACCOMMODATION,MARKETS,RESPECT CREMATORIA LTD,477297,200,-,
BEIS,Met Office,2023-03-10,11 SERVICES,MARKETS,SOFTWIRE TECHNOLOGY LIMITED,477392,38640,752 1253 57,
BEIS,Met Office,2023-03-22,11 SERVICES,MARKETS,SOFTWIRE TECHNOLOGY LIMITED,477722,50610,752 1253 57,
BEIS,Met Office,2023-03-08,11 SERVICES,MARKETS,SPOKE (INTERACTIVE) LTD,477240,700,840156451,
BEIS,Met Office,2023-03-24,12 INTERNATIONAL,MARKETS,SWANTECH LOGISTICS LTD,477849,195,769332401,
BEIS,Met Office,2023-03-16,11 SERVICES,MARKETS,SWANTECH LOGISTICS LTD,477464,960,769332401,
BEIS,Met Office,2023-03-16,11 SERVICES,MARKETS,SWANTECH LOGISTICS LTD,477465,1920,769332401,
BEIS,Met Office,2023-03-07,12 INTERNATIONAL,MARKETS,SWANTECH LOGISTICS LTD,477117,2539.07,769332401,
BEIS,Met Office,2023-03-01,12 INTERNATIONAL,MARKETS,TOTEX CORPORATION,476657,22.5,-,
BEIS,Met Office,2023-03-01,12 INTERNATIONAL,MARKETS,TOTEX CORPORATION,476657,910,-,
BEIS,Met Office,2023-03-01,12 INTERNATIONAL,MARKETS,TOTEX CORPORATION,476657,3560,-,
BEIS,Met Office,2023-03-27,REVENUE,MARKETS,UKRI,24340,-10401.56,GB287461957,
BEIS,Met Office,2023-03-27,REVENUE,MARKETS,UKRI,24323,10241.23,GB287461957,
BEIS,Met Office,2023-03-31,13 MISCELLANEOUS,MARKETS,University Of Bristol,478038,6574.84,991261800,
BEIS,Met Office,2023-03-16,11 SERVICES,MARKETS,WORLDPAY (UK) LTD,477533,523.12,991280207,
BEIS,Met Office,2023-03-06,11 SERVICES,MARKETS,WORLDPAY LTD,477047,26.25,991280207,
BEIS,Met Office,2023-03-14,03 STAFF COSTS T&S,OFFICE OF THE CEO,ASSOCIATION OF CHIEF EXECUTIVES,477471,1500,N/A,
BEIS,Met Office,2023-03-20,11 SERVICES,OFFICE OF THE CEO,DEVON & SOMERSET LAW SOCIETY,477593,145,141338689,
BEIS,Met Office,2023-03-02,11 SERVICES,OFFICE OF THE CEO,MAZARS LLP,476861,1975,839835673,
BEIS,Met Office,2023-03-06,PROVISIONS,OFFICE OF THE CEO,Royal Meteorological Society,477091,5000,-,
BEIS,Met Office,2023-03-07,CYCLESCHEME,OTHER,EDENRED EB (SHOPPING VOUCHERS),477150,233,649 503 520,
BEIS,Met Office,2023-03-07,CYCLESCHEME,OTHER,EDENRED EB (SHOPPING VOUCHERS),477149,266,649 503 520,
BEIS,Met Office,2023-03-24,CYCLESCHEME,OTHER,EDENRED EB (SHOPPING VOUCHERS),477795,429,649 503 520,
BEIS,Met Office,2023-03-07,CYCLESCHEME,OTHER,EDENRED EB (SHOPPING VOUCHERS),477148,445,649 503 520,
BEIS,Met Office,2023-03-07,CYCLESCHEME,OTHER,EDENRED EB (SHOPPING VOUCHERS),477140,1386,649 503 520,
BEIS,Met Office,2023-03-24,11 SERVICES,OTHER,HOGAN LOVELLS INTERNATIONAL LLP,477807,2544.19,GB123371543,
BEIS,Met Office,2023-03-02,TRADE CREDITORS,OTHER,NATWEST COMMERCIAL CARDS DIVISION,476680,160506.66,N/A,
BEIS,Met Office,2023-03-27,TRADE CREDITORS,OTHER,NATWEST COMMERCIAL CARDS DIVISION,477717,209370.59,N/A,
BEIS,Met Office,2023-03-01,11 SERVICES,PEOPLE,494 CONSULTING,476484,240,332819305,
BEIS,Met Office,2023-03-13,11 SERVICES,PEOPLE,ACTIVE LEARNING TEAM LTD,477408,1400,-,
BEIS,Met Office,2023-03-02,11 SERVICES,PEOPLE,ACTIVE LEARNING TEAM LTD,476830,2800,-,
BEIS,Met Office,2023-03-09,11 SERVICES,PEOPLE,BEIS,477366,8353.29,888825550,
BEIS,Met Office,2023-03-06,13 MISCELLANEOUS,PEOPLE,BROADBEAN TECHNOLOGY LTD,477085,950.4,GB184088778,
BEIS,Met Office,2023-03-02,08 SOFTWARE LICENCES,PEOPLE,CATALYST IT,476963,1635.83,978169262,
BEIS,Met Office,2023-03-24,11 SERVICES,PEOPLE,CIPHR,477812,8750,242661124,
BEIS,Met Office,2023-03-24,08 SOFTWARE LICENCES,PEOPLE,CIPHR,477812,51527.5,242661124,
BEIS,Met Office,2023-03-01,11 SERVICES,PEOPLE,CIVICA UK LIMITED,476827,7503.5,391171065,
BEIS,Met Office,2023-03-21,11 SERVICES,PEOPLE,DRIVE CREATIVE STUDIO LTD,477609,20000,167656860,
BEIS,Met Office,2023-03-06,13 MISCELLANEOUS,PEOPLE,EDENRED - CHILDCARE VOUCHERS,476692,-100,649 503 520,
BEIS,Met Office,2023-03-06,13 MISCELLANEOUS,PEOPLE,EDENRED - CHILDCARE VOUCHERS,477043,9694.5,649 503 520,
BEIS,Met Office,2023-03-02,13 MISCELLANEOUS,PEOPLE,EDENRED I&M (IRS VOUCHERS),476950,27570.6,649 503 520,
BEIS,Met Office,2023-03-20,11 SERVICES,PEOPLE,GQA QUALIFICATIONS LTD,477210,40,-,
BEIS,Met Office,2023-03-01,13 MISCELLANEOUS,PEOPLE,GTI FUTURES LIMITED,476838,9995,GB 882 4583 89,
BEIS,Met Office,2023-03-06,11 SERVICES,PEOPLE,HEALTH ASSURED LIMITED,477098,1120,927 5242 17,
BEIS,Met Office,2023-03-13,11 SERVICES,PEOPLE,INCOMES DATA RESEARCH LTD,477404,785,201387245,
BEIS,Met Office,2023-03-16,04 CONTRACTORS,PEOPLE,MATRIX SCM LIMITED,477579,198655.72,249 5734 68,
BEIS,Met Office,2023-03-24,04 CONTRACTORS,PEOPLE,MATRIX SCM LIMITED,477834,208014.25,249 5734 68,
BEIS,Met Office,2023-03-13,04 CONTRACTORS,PEOPLE,MATRIX SCM LIMITED,476770,217762.21,249 5734 68,
BEIS,Met Office,2023-03-31,04 CONTRACTORS,PEOPLE,MATRIX SCM LIMITED,478023,251621.41,249 5734 68,
BEIS,Met Office,2023-03-08,04 CONTRACTORS,PEOPLE,MATRIX SCM LIMITED,477095,269647.55,249 5734 68,
BEIS,Met Office,2023-03-31,04 CONTRACTORS,PEOPLE,MATRIX SCM LIMITED,478024,277712.13,249 5734 68,
BEIS,Met Office,2023-03-20,11 SERVICES,PEOPLE,MOMENTUM INCORPORATED,477598,6660,598958541,
BEIS,Met Office,2023-03-20,11 SERVICES,PEOPLE,MOMENTUM INCORPORATED,477599,6660,598958541,
BEIS,Met Office,2023-03-08,11 SERVICES,PEOPLE,NLA MEDIA ACCESS LTD,477087,2852.38,661865215,
BEIS,Met Office,2023-03-08,11 SERVICES,PEOPLE,NLA MEDIA ACCESS LTD,477086,9507.92,661865215,
BEIS,Met Office,2023-03-13,11 SERVICES,PEOPLE,REDACTED � PERSONAL DATA,477364,825,143043312,
BEIS,Met Office,2023-03-09,11 SERVICES,PEOPLE,REDACTED � PERSONAL DATA,477362,872,143043312,
BEIS,Met Office,2023-03-13,11 SERVICES,PEOPLE,REDACTED � PERSONAL DATA,477361,1792,143043312,
BEIS,Met Office,2023-03-13,13 MISCELLANEOUS,PEOPLE,RESTORE RECORDS MANAGEMENT,477406,13.18,843 863011,
BEIS,Met Office,2023-03-23,11 SERVICES,PEOPLE,RIVER TRAINING AND HR,477806,800,-,
BEIS,Met Office,2023-03-29,11 SERVICES,PEOPLE,RUNTIME COLLECTIVE LTD T/A BRANDWATCH,475190,6174,754750710,
BEIS,Met Office,2023-03-13,11 SERVICES,PEOPLE,SKILLTEC LIMITED,475268,995,909833105,
BEIS,Met Office,2023-03-06,11 SERVICES,PEOPLE,SKILLTEC LIMITED,475269,1295,909833105,
BEIS,Met Office,2023-03-24,11 SERVICES,PEOPLE,SOURCE COACHING CONSULTANCY,477867,1775,170422048,
BEIS,Met Office,2023-03-16,06 ACCOMMODATION,PEOPLE,SWANTECH LOGISTICS LTD,477463,11532,769332401,
BEIS,Met Office,2023-03-02,11 SERVICES,PEOPLE,THE STRENGTHS PEOPLE LTD,476962,1250,206868488,
BEIS,Met Office,2023-03-31,11 SERVICES,PEOPLE,THE STRENGTHS PEOPLE LTD,477971,2170.7,206868488,
BEIS,Met Office,2023-03-02,11 SERVICES,PEOPLE,TP HEALTH LTD,476866,1105,883064608,
BEIS,Met Office,2023-03-02,11 SERVICES,PEOPLE,TP HEALTH LTD,476865,1140,883064608,
BEIS,Met Office,2023-03-10,11 SERVICES,PEOPLE,TRICKBOX,477250,5000,990276003,
BEIS,Met Office,2023-03-21,11 SERVICES,PEOPLE,VIMA CONSULTING LTD,476467,1,231412752,
BEIS,Met Office,2023-03-21,11 SERVICES,PEOPLE,VIMA CONSULTING LTD,476467,12349,231412752,
BEIS,Met Office,2023-03-09,11 SERVICES,PEOPLE,WITH ALACRITY LTD,477127,2450,-,
BEIS,Met Office,2023-03-22,11 SERVICES,PEOPLE,WMP SPORT LIMITED,477748,720,331060162,
BEIS,Met Office,2023-03-08,13 MISCELLANEOUS,PEOPLE,YOTI LTD,477142,9.9,GB199947617,
BEIS,Met Office,2023-03-16,11 SERVICES,PROGRAMMES,BAE SYSTEMS APPLIED INTELLIGENCE LIMITED,476250,660,GB641407169,
BEIS,Met Office,2023-03-31,11 SERVICES,PROGRAMMES,BAE SYSTEMS APPLIED INTELLIGENCE LIMITED,476525,1239.08,GB641407169,
BEIS,Met Office,2023-03-07,11 SERVICES,PROGRAMMES,BAE SYSTEMS APPLIED INTELLIGENCE LIMITED,476699,5282,GB641407169,
BEIS,Met Office,2023-03-13,11 SERVICES,PROGRAMMES,BAE SYSTEMS APPLIED INTELLIGENCE LIMITED,477231,17822,GB641407169,
BEIS,Met Office,2023-03-13,11 SERVICES,PROGRAMMES,BAE SYSTEMS APPLIED INTELLIGENCE LIMITED,477230,18760,GB641407169,
BEIS,Met Office,2023-03-13,11 SERVICES,PROGRAMMES,BAE SYSTEMS APPLIED INTELLIGENCE LIMITED,477227,22097,GB641407169,
BEIS,Met Office,2023-03-13,11 SERVICES,PROGRAMMES,BAE SYSTEMS APPLIED INTELLIGENCE LIMITED,477229,25416,GB641407169,
BEIS,Met Office,2023-03-22,13 MISCELLANEOUS,PROGRAMMES,BANNER GROUP LIMITED,477756,-17.77,GB391085740,
BEIS,Met Office,2023-03-22,13 MISCELLANEOUS,PROGRAMMES,BANNER GROUP LIMITED,477739,34.4,GB391085740,
BEIS,Met Office,2023-03-29,11 SERVICES,PROGRAMMES,BJSS LIMITED,477252,-69898.75,613295452,
BEIS,Met Office,2023-03-10,11 SERVICES,PROGRAMMES,BJSS LIMITED,477245,8550,613295452,
BEIS,Met Office,2023-03-29,11 SERVICES,PROGRAMMES,BJSS LIMITED,477363,68743.75,613295452,
BEIS,Met Office,2023-03-13,11 SERVICES,PROGRAMMES,BJSS LIMITED,477244,69898.75,613295452,
BEIS,Met Office,2023-03-10,11 SERVICES,PROGRAMMES,Cgi It Uk Limited,477242,30287,232615194,
BEIS,Met Office,2023-03-10,11 SERVICES,PROGRAMMES,Cgi It Uk Limited,477241,38642,232615194,
BEIS,Met Office,2023-03-10,11 SERVICES,PROGRAMMES,Cgi It Uk Limited,477243,70046,232615194,
BEIS,Met Office,2023-03-27,11 SERVICES,PROGRAMMES,Dstl,477877,970.88,888805166,
BEIS,Met Office,2023-03-22,11 SERVICES,PROGRAMMES,Dstl,477787,1320.98,888805166,
BEIS,Met Office,2023-03-22,11 SERVICES,PROGRAMMES,Dstl,477788,2397.2,888805166,
BEIS,Met Office,2023-03-22,11 SERVICES,PROGRAMMES,Dstl,477786,3603.6,888805166,
BEIS,Met Office,2023-03-31,11 SERVICES,PROGRAMMES,E CO.,477964,5450,GB238535057,
BEIS,Met Office,2023-03-31,11 SERVICES,PROGRAMMES,E CO.,477964,11875,GB238535057,
BEIS,Met Office,2023-03-06,11 SERVICES,PROGRAMMES,Esri (Uk) Ltd,477084,9373.4,787430791,
BEIS,Met Office,2023-03-02,11 SERVICES,PROGRAMMES,FLYFORM LTD,476960,21392.5,237333808,
BEIS,Met Office,2023-03-01,11 SERVICES,PROGRAMMES,GLOBAL ACTION PLAN,476862,6499,GB 625 994 009,
BEIS,Met Office,2023-03-27,11 SERVICES,PROGRAMMES,HOGAN LOVELLS INTERNATIONAL LLP,477808,2220.38,GB123371543,
BEIS,Met Office,2023-03-06,11 SERVICES,PROGRAMMES,HOGAN LOVELLS INTERNATIONAL LLP,477100,4760.4,GB123371543,
BEIS,Met Office,2023-03-27,11 SERVICES,PROGRAMMES,HOGAN LOVELLS INTERNATIONAL LLP,477875,5365.93,GB123371543,
BEIS,Met Office,2023-03-21,11 SERVICES,PROGRAMMES,HOGAN LOVELLS INTERNATIONAL LLP,477099,5909.8,GB123371543,
BEIS,Met Office,2023-03-21,11 SERVICES,PROGRAMMES,HOGAN LOVELLS INTERNATIONAL LLP,477099,14189.42,GB123371543,
BEIS,Met Office,2023-03-30,11 SERVICES,PROGRAMMES,HOGAN LOVELLS INTERNATIONAL LLP,477965,20891.9,GB123371543,
BEIS,Met Office,2023-03-06,11 SERVICES,PROGRAMMES,HOGAN LOVELLS INTERNATIONAL LLP,477101,40280.41,GB123371543,
BEIS,Met Office,2023-03-27,11 SERVICES,PROGRAMMES,Hr Wallingford Ltd,477580,55000,570039752,
BEIS,Met Office,2023-03-27,11 SERVICES,PROGRAMMES,Hr Wallingford Ltd,477580,79147,570039752,
BEIS,Met Office,2023-03-08,08 SOFTWARE LICENCES,PROGRAMMES,"IBL SOFTWARE ENGINEERING, SPOL S.R.O.",476570,38747.58,SK2020241883,
BEIS,Met Office,2023-03-17,13 MISCELLANEOUS,PROGRAMMES,IOP PUBLISHING LTD,477592,1850,GB461 600084,
BEIS,Met Office,2023-03-16,11 SERVICES,PROGRAMMES,JT DEV HOLDINGS LTD,476881,6500,-,
BEIS,Met Office,2023-03-08,11 SERVICES,PROGRAMMES,"K F LEWIN CONSULTING, LLC",10953,4557.24,-,
BEIS,Met Office,2023-03-08,11 SERVICES,PROGRAMMES,"K F LEWIN CONSULTING, LLC",10958,12753.99,-,
BEIS,Met Office,2023-03-14,11 SERVICES,PROGRAMMES,LAFOSSE ASSOCIATES,477468,15000,GB 360026537,
BEIS,Met Office,2023-03-08,11 SERVICES,PROGRAMMES,MADE TECH,477204,91123.21,938565184,
BEIS,Met Office,2023-03-01,11 SERVICES,PROGRAMMES,MAURITIUS METEOROLOGICAL SOCIETY,475962,9500,-,
BEIS,Met Office,2023-03-23,11 SERVICES,PROGRAMMES,Microsoft Ltd,477673,321300.48,724594615,
BEIS,Met Office,2023-03-06,11 SERVICES,PROGRAMMES,Npl Management Ltd,476932,5000,207523388,
BEIS,Met Office,2023-03-29,PLANT AND EQUIPMENT,PROGRAMMES,PZ&W LTD,477932,3525,684 6795 68,
BEIS,Met Office,2023-03-08,06 ACCOMMODATION,PROGRAMMES,REDACTED � PERSONAL DATA,477293,960,-,
BEIS,Met Office,2023-03-07,11 SERVICES,PROGRAMMES,REDACTED � PERSONAL DATA,476577,25000,N/A,
BEIS,Met Office,2023-03-16,11 SERVICES,PROGRAMMES,REGENTS OF THE UNIVERSITY OF COLORADO,10965,54745.52,-,
BEIS,Met Office,2023-03-22,11 SERVICES,PROGRAMMES,RESURGENCE URBAN RESILIENCE TRUST,477785,50087.28,259524184,
BEIS,Met Office,2023-03-08,11 SERVICES,PROGRAMMES,ROWE IT LTD,477139,7467.6,924964394,
BEIS,Met Office,2023-03-07,11 SERVICES,PROGRAMMES,ROWE IT LTD,477138,15000,924964394,
BEIS,Met Office,2023-03-08,11 SERVICES,PROGRAMMES,ROWE IT LTD,477139,26136.6,924964394,
BEIS,Met Office,2023-03-08,11 SERVICES,PROGRAMMES,ROWE IT LTD,477139,46672.5,924964394,
BEIS,Met Office,2023-03-08,11 SERVICES,PROGRAMMES,ROWE IT LTD,477139,46672.5,924964394,
BEIS,Met Office,2023-03-08,11 SERVICES,PROGRAMMES,ROWE IT LTD,477139,59740.8,924964394,
BEIS,Met Office,2023-03-07,11 SERVICES,PROGRAMMES,ROWE IT LTD,477156,115262.5,924964394,
BEIS,Met Office,2023-03-21,13 MISCELLANEOUS,PROGRAMMES,ROYAL MET SOCIETY,477701,100,-,
BEIS,Met Office,2023-03-29,11 SERVICES,PROGRAMMES,SCIENCE & TECHNOLOGY FACILITIES COUNCIL,477796,-28615.88,287461957,
BEIS,Met Office,2023-03-28,11 SERVICES,PROGRAMMES,SCIENCE & TECHNOLOGY FACILITIES COUNCIL,477804,14307.94,287461957,
BEIS,Met Office,2023-03-27,11 SERVICES,PROGRAMMES,SCIENCE & TECHNOLOGY FACILITIES COUNCIL,477805,24294,287461957,
BEIS,Met Office,2023-03-29,11 SERVICES,PROGRAMMES,SCIENCE & TECHNOLOGY FACILITIES COUNCIL,476739,28615.88,287461957,
BEIS,Met Office,2023-03-06,11 SERVICES,PROGRAMMES,SCIENCE & TECHNOLOGY FACILITIES COUNCIL,477109,80000,287461957,
BEIS,Met Office,2023-03-29,06 ACCOMMODATION,PROGRAMMES,Scottish Police Authority,477950,1700.31,158533589,
BEIS,Met Office,2023-03-07,08 SOFTWARE LICENCES,PROGRAMMES,SPECIALIST COMPUTER CENTRES,477041,410.9,313651680,
BEIS,Met Office,2023-03-07,08 SOFTWARE LICENCES,PROGRAMMES,SPECIALIST COMPUTER CENTRES,477041,3122.5,313651680,
BEIS,Met Office,2023-03-07,08 SOFTWARE LICENCES,PROGRAMMES,SPECIALIST COMPUTER CENTRES,477041,4683.75,313651680,
BEIS,Met Office,2023-03-01,11 SERVICES,PROGRAMMES,UCAR INCOMING PAYMENTS,10902,142644.68,-,
BEIS,Met Office,2023-03-22,11 SERVICES,PROGRAMMES,UK ATOMIC ENERGY AUTHORITY,477741,5000,GB570101391,
BEIS,Met Office,2023-03-29,11 SERVICES,PROGRAMMES,UK ATOMIC ENERGY AUTHORITY,477906,31875,GB570101391,
BEIS,Met Office,2023-03-31,11 SERVICES,PROGRAMMES,UK ATOMIC ENERGY AUTHORITY,478029,78750,GB570101391,
BEIS,Met Office,2023-03-30,11 SERVICES,PROGRAMMES,UK ATOMIC ENERGY AUTHORITY,477910,81000,GB570101391,
BEIS,Met Office,2023-03-31,11 SERVICES,PROGRAMMES,UK ATOMIC ENERGY AUTHORITY,478028,90000,GB570101391,
BEIS,Met Office,2023-03-30,11 SERVICES,PROGRAMMES,University Of Birmingham,477990,17827.95,729856187,
BEIS,Met Office,2023-03-14,11 SERVICES,PROGRAMMES,University Of Birmingham,477360,43168.2,729856187,
BEIS,Met Office,2023-03-21,11 SERVICES,PROGRAMMES,University of Edinburgh,477720,33360,592950700,
BEIS,Met Office,2023-03-21,11 SERVICES,PROGRAMMES,University of Edinburgh,477721,33360,592950700,
BEIS,Met Office,2023-03-24,11 SERVICES,PROGRAMMES,University of Edinburgh,477791,137843.2,592950700,
BEIS,Met Office,2023-03-29,11 SERVICES,PROGRAMMES,University Of Exeter,477984,2500,142047795,
BEIS,Met Office,2023-03-29,11 SERVICES,PROGRAMMES,University Of Exeter,477985,41666,142047795,
BEIS,Met Office,2023-03-30,11 SERVICES,PROGRAMMES,University Of Exeter,478036,49980,142047795,
BEIS,Met Office,2023-03-16,11 SERVICES,PROGRAMMES,University Of Leeds,471590,12500,613451470,
BEIS,Met Office,2023-03-16,11 SERVICES,PROGRAMMES,University Of Leeds,475651,24925.82,613451470,
BEIS,Met Office,2023-03-24,11 SERVICES,PROGRAMMES,University Of Leeds,477833,58000,613451470,
BEIS,Met Office,2023-03-24,11 SERVICES,PROGRAMMES,University Of Leeds,477833,123188.04,613451470,
BEIS,Met Office,2023-03-16,11 SERVICES,PROGRAMMES,University Of Oxford,473373,25081.62,125506730,
BEIS,Met Office,2023-03-29,11 SERVICES,PROGRAMMES,University Of Reading,478017,-14100.94,200012659,
BEIS,Met Office,2023-03-06,11 SERVICES,PROGRAMMES,University Of Reading,477089,21565.38,200012659,
BEIS,Met Office,2023-03-31,11 SERVICES,PROGRAMMES,University Of Reading,478070,186334.48,200012659,
BEIS,Met Office,2023-03-17,11 SERVICES,PROGRAMMES,WESTHILL KNOWLEDGE LIMITED,477591,5568,128166218,
BEIS,Met Office,2023-03-14,11 SERVICES,SCIENCE,Imperial College,477275,57500,649926678,
BEIS,Met Office,2023-03-30,11 SERVICES,SCIENCE,"LINDE GAS ESPANA, S.A.U.",24334,-191.15,-,
BEIS,Met Office,2023-03-08,11 SERVICES,SCIENCE,National Oceanography Centre,24652,158756.86,GB 338 5487 64,
BEIS,Met Office,2023-03-30,11 SERVICES,SCIENCE,Rsk Adas Ltd,476968,6125,256435886,
BEIS,Met Office,2023-03-30,11 SERVICES,SCIENCE,Rsk Adas Ltd,477740,6125,256435886,
BEIS,Met Office,2023-03-16,06 ACCOMMODATION,SCIENCE,SIGNS EXPRESS (EXETER),477470,2068,631397439,
BEIS,Met Office,2023-03-10,11 SERVICES,SCIENCE,THE STRENGTHS PEOPLE LTD,476970,2200,206868488,
BEIS,Met Office,2023-03-31,11 SERVICES,SCIENCE,THE UNIVERSITY OF WARWICK,478074,4483.02,-,
BEIS,Met Office,2023-03-30,13 MISCELLANEOUS,SCIENCE,University Of East Anglia,476133,-1000,595183505,
BEIS,Met Office,2023-03-30,13 MISCELLANEOUS,SCIENCE,University Of East Anglia,475843,1000,595183505,
BEIS,Met Office,2023-03-22,11 SERVICES,SCIENCE,University of Edinburgh,477474,-23524.92,592950700,
BEIS,Met Office,2023-03-22,11 SERVICES,SCIENCE,University of Edinburgh,477759,23524.9,592950700,
BEIS,Met Office,2023-03-29,13 MISCELLANEOUS,SCIENCE,University Of Exeter,477815,-1000,142047795,
BEIS,Met Office,2023-03-29,13 MISCELLANEOUS,SCIENCE,University Of Exeter,472367,1000,142047795,
BEIS,Met Office,2023-03-16,11 SERVICES,SCIENCE,University Of Exeter,477502,7007.77,142047795,
BEIS,Met Office,2023-03-17,11 SERVICES,SERVICES,AFBI,477613,50,252677738,
BEIS,Met Office,2023-03-08,03 STAFF COSTS T&S,SERVICES,AIRPORT CAR RENTALS LTD,477253,320,-,
BEIS,Met Office,2023-03-21,11 SERVICES,SERVICES,APPLIED SATELLITE TECHNOLOGY SYSTEMS LTD,476661,34.23,720108683,
BEIS,Met Office,2023-03-07,11 SERVICES,SERVICES,APPLIED SATELLITE TECHNOLOGY SYSTEMS LTD,476668,34.23,720108683,
BEIS,Met Office,2023-03-22,11 SERVICES,SERVICES,APPLIED SATELLITE TECHNOLOGY SYSTEMS LTD,477713,45.26,720108683,
BEIS,Met Office,2023-03-22,11 SERVICES,SERVICES,APPLIED SATELLITE TECHNOLOGY SYSTEMS LTD,477714,54.66,720108683,
BEIS,Met Office,2023-03-22,11 SERVICES,SERVICES,APPLIED SATELLITE TECHNOLOGY SYSTEMS LTD,477700,69.28,720108683,
BEIS,Met Office,2023-03-16,11 SERVICES,SERVICES,APPLIED SATELLITE TECHNOLOGY SYSTEMS LTD,476719,97.86,720108683,
BEIS,Met Office,2023-03-07,11 SERVICES,SERVICES,APPLIED SATELLITE TECHNOLOGY SYSTEMS LTD,476710,107.69,720108683,
BEIS,Met Office,2023-03-22,11 SERVICES,SERVICES,APPLIED SATELLITE TECHNOLOGY SYSTEMS LTD,477703,135.46,720108683,
BEIS,Met Office,2023-03-06,11 SERVICES,SERVICES,APPLIED SATELLITE TECHNOLOGY SYSTEMS LTD,473797,328.9,720108683,
BEIS,Met Office,2023-03-07,11 SERVICES,SERVICES,APPLIED SATELLITE TECHNOLOGY SYSTEMS LTD,476712,334.35,720108683,
BEIS,Met Office,2023-03-07,11 SERVICES,SERVICES,APPLIED SATELLITE TECHNOLOGY SYSTEMS LTD,476669,513.45,720108683,
BEIS,Met Office,2023-03-07,11 SERVICES,SERVICES,APPLIED SATELLITE TECHNOLOGY SYSTEMS LTD,476670,787.29,720108683,
BEIS,Met Office,2023-03-07,11 SERVICES,SERVICES,APPLIED SATELLITE TECHNOLOGY SYSTEMS LTD,476713,1724.86,720108683,
BEIS,Met Office,2023-03-07,11 SERVICES,SERVICES,APPLIED SATELLITE TECHNOLOGY SYSTEMS LTD,476667,2396.1,720108683,
BEIS,Met Office,2023-03-07,11 SERVICES,SERVICES,APPLIED SATELLITE TECHNOLOGY SYSTEMS LTD,476711,5297.75,720108683,
BEIS,Met Office,2023-03-06,11 SERVICES,SERVICES,APPLIED SATELLITE TECHNOLOGY SYSTEMS LTD,473805,7837.45,720108683,
BEIS,Met Office,2023-03-01,03 STAFF COSTS T&S,SERVICES,AVIS BUDGET PAYLESS,24628,0,-,
BEIS,Met Office,2023-03-01,03 STAFF COSTS T&S,SERVICES,AVIS BUDGET PAYLESS,24628,1581.81,-,
BEIS,Met Office,2023-03-06,10 EQUIPMENT MAINTENANCE,SERVICES,BFBS MEDIA LTD,477102,29450,GB 118 496 687,
BEIS,Met Office,2023-03-21,STOCK,SERVICES,BLACK BOX NETWORK SERVICES (UK) LTD,477677,0,GB834864303,
BEIS,Met Office,2023-03-21,STOCK,SERVICES,BLACK BOX NETWORK SERVICES (UK) LTD,477677,0,GB834864303,
BEIS,Met Office,2023-03-21,11 SERVICES,SERVICES,BLACK BOX NETWORK SERVICES (UK) LTD,477677,12.5,GB834864303,
BEIS,Met Office,2023-03-21,TRADE CREDITORS,SERVICES,BLACK BOX NETWORK SERVICES (UK) LTD,477677,1306.68,GB834864303,
BEIS,Met Office,2023-03-21,TRADE CREDITORS,SERVICES,BLACK BOX NETWORK SERVICES (UK) LTD,477677,2274.6,GB834864303,
BEIS,Met Office,2023-03-06,11 SERVICES,SERVICES,Boc Ltd,476930,19271.94,226556555,
BEIS,Met Office,2023-03-27,11 SERVICES,SERVICES,BUSINESS SUPPORT CENTRE LTD,477879,57.75,927365208,
BEIS,Met Office,2023-03-16,07 EQUIPMENT,SERVICES,CABINET OFFICE - COF LEAD ACCOUNT,477504,500,-,
BEIS,Met Office,2023-03-16,07 EQUIPMENT,SERVICES,CABINET OFFICE - COF LEAD ACCOUNT,477503,595,-,
BEIS,Met Office,2023-03-16,07 EQUIPMENT,SERVICES,CABINET OFFICE - COF LEAD ACCOUNT,477503,1000,-,
BEIS,Met Office,2023-03-16,07 EQUIPMENT,SERVICES,CABINET OFFICE - COF LEAD ACCOUNT,477503,1500,-,
BEIS,Met Office,2023-03-16,07 EQUIPMENT,SERVICES,CABINET OFFICE - COF LEAD ACCOUNT,477504,5000,-,
BEIS,Met Office,2023-03-16,07 EQUIPMENT,SERVICES,CABINET OFFICE - COF LEAD ACCOUNT,477503,10794,-,
BEIS,Met Office,2023-03-16,07 EQUIPMENT,SERVICES,CABINET OFFICE - COF LEAD ACCOUNT,477504,11500,-,
BEIS,Met Office,2023-03-16,07 EQUIPMENT,SERVICES,CABINET OFFICE - COF LEAD ACCOUNT,477503,12300,-,
BEIS,Met Office,2023-03-13,STOCK,SERVICES,Campbell Scientific Ltd,476786,0,428453933,
BEIS,Met Office,2023-03-23,STOCK,SERVICES,Campbell Scientific Ltd,477524,0,428453933,
BEIS,Met Office,2023-03-29,STOCK,SERVICES,Campbell Scientific Ltd,477966,0,428453933,
BEIS,Met Office,2023-03-29,STOCK,SERVICES,Campbell Scientific Ltd,477968,0,428453933,
BEIS,Met Office,2023-03-24,13 MISCELLANEOUS,SERVICES,Campbell Scientific Ltd,477836,20,428453933,
BEIS,Met Office,2023-03-29,11 SERVICES,SERVICES,Campbell Scientific Ltd,477966,30,428453933,
BEIS,Met Office,2023-03-29,11 SERVICES,SERVICES,Campbell Scientific Ltd,477968,30,428453933,
BEIS,Met Office,2023-03-23,11 SERVICES,SERVICES,Campbell Scientific Ltd,477524,60,428453933,
BEIS,Met Office,2023-03-24,07 EQUIPMENT,SERVICES,Campbell Scientific Ltd,477836,441,428453933,
BEIS,Met Office,2023-03-13,TRADE CREDITORS,SERVICES,Campbell Scientific Ltd,476786,771.6,428453933,
BEIS,Met Office,2023-03-16,07 EQUIPMENT,SERVICES,Campbell Scientific Ltd,477525,871.4,428453933,
BEIS,Met Office,2023-03-29,TRADE CREDITORS,SERVICES,Campbell Scientific Ltd,477968,1399.5,428453933,
BEIS,Met Office,2023-03-29,TRADE CREDITORS,SERVICES,Campbell Scientific Ltd,477966,2076.38,428453933,
BEIS,Met Office,2023-03-23,TRADE CREDITORS,SERVICES,Campbell Scientific Ltd,477524,15472.8,428453933,
BEIS,Met Office,2023-03-16,03 STAFF COSTS T&S,SERVICES,CHARLIE'S TRAVEL LTD,477590,52.5,783848277,
BEIS,Met Office,2023-03-16,03 STAFF COSTS T&S,SERVICES,CHARLIE'S TRAVEL LTD,477589,132.18,783848277,
BEIS,Met Office,2023-03-08,03 STAFF COSTS T&S,SERVICES,CHARLIE'S TRAVEL LTD,477248,135,783848277,
BEIS,Met Office,2023-03-08,03 STAFF COSTS T&S,SERVICES,CHARLIE'S TRAVEL LTD,477203,183.11,783848277,
BEIS,Met Office,2023-03-28,03 STAFF COSTS T&S,SERVICES,CHARLIE'S TRAVEL LTD,477917,244.43,783848277,
BEIS,Met Office,2023-03-01,03 STAFF COSTS T&S,SERVICES,CHARLIE'S TRAVEL LTD,476864,418.27,783848277,
BEIS,Met Office,2023-03-08,03 STAFF COSTS T&S,SERVICES,CHARLIE'S TRAVEL LTD,477248,611.92,783848277,
BEIS,Met Office,2023-03-08,03 STAFF COSTS T&S,SERVICES,CHARLIE'S TRAVEL LTD,477248,902.21,783848277,
BEIS,Met Office,2023-03-30,07 EQUIPMENT,SERVICES,CHARNWOOD FASTENERS LIMITED,477811,0,355315757,
BEIS,Met Office,2023-03-21,07 EQUIPMENT,SERVICES,CHARNWOOD FASTENERS LIMITED,477608,400,355315757,
BEIS,Met Office,2023-03-30,07 EQUIPMENT,SERVICES,CHARNWOOD FASTENERS LIMITED,477811,1479.5,355315757,
BEIS,Met Office,2023-03-10,11 SERVICES,SERVICES,CLOUDREACH EUROPE LIMITED,477380,7300,978187168,
BEIS,Met Office,2023-03-21,07 EQUIPMENT,SERVICES,COMPUTACENTER (UK) LTD,477718,4757.16,490334648,
BEIS,Met Office,2023-03-08,07 EQUIPMENT,SERVICES,DATA BUOY INSTRUMENTATION LLC,10979,4681.07,-,
BEIS,Met Office,2023-03-07,03 STAFF COSTS T&S,SERVICES,DBS FINANCE RECEIPTS CTS,477144,5621,888805068,
BEIS,Met Office,2023-03-08,08 SOFTWARE LICENCES,SERVICES,DEEPCRAWL,477211,31222.9,GB 988965031,
BEIS,Met Office,2023-03-08,10 EQUIPMENT MAINTENANCE,SERVICES,DEUTSCHE WINDGUARD WIND TUNNEL SERVICES GMBH,24673,28.67,DE225152482,
BEIS,Met Office,2023-03-08,10 EQUIPMENT MAINTENANCE,SERVICES,DEUTSCHE WINDGUARD WIND TUNNEL SERVICES GMBH,24673,44.11,DE225152482,
BEIS,Met Office,2023-03-08,10 EQUIPMENT MAINTENANCE,SERVICES,DEUTSCHE WINDGUARD WIND TUNNEL SERVICES GMBH,24673,3573.28,DE225152482,
BEIS,Met Office,2023-03-09,11 SERVICES,SERVICES,DHL GLOBAL FORWARDING (UK) LTD,477108,4671.94,745260438,
BEIS,Met Office,2023-03-08,13 MISCELLANEOUS,SERVICES,DHL GLOBAL FORWARDING (UK) LTD,477107,10723.11,745260438,
BEIS,Met Office,2023-03-17,11 SERVICES,SERVICES,EAST LOTHIAN COUNCIL - GENERAL FUND,477612,150,-,
BEIS,Met Office,2023-03-16,07 EQUIPMENT,SERVICES,EQUINOX INSTRUMENTS LTD,477428,25,865954274,
BEIS,Met Office,2023-03-16,07 EQUIPMENT,SERVICES,EQUINOX INSTRUMENTS LTD,477428,2999.65,865954274,
BEIS,Met Office,2023-03-22,13 MISCELLANEOUS,SERVICES,ESSL,24674,3617.4,DE252519763,
BEIS,Met Office,2023-03-22,12 INTERNATIONAL,SERVICES,EURO-ARGO ERIC,24659,26658.3,723/2009,
BEIS,Met Office,2023-03-30,06 ACCOMMODATION,SERVICES,FMS INTERIOR SERVICES LTD,477989,2725.46,922056940,
BEIS,Met Office,2023-03-16,11 SERVICES,SERVICES,GAMMA TELECOM LTD,475730,-361.74,823820344,
BEIS,Met Office,2023-03-16,11 SERVICES,SERVICES,GAMMA TELECOM LTD,475478,149.97,823820344,
BEIS,Met Office,2023-03-16,11 SERVICES,SERVICES,GAMMA TELECOM LTD,475478,4500,823820344,
BEIS,Met Office,2023-03-16,11 SERVICES,SERVICES,GAMMA TELECOM LTD,475730,5000,823820344,
BEIS,Met Office,2023-03-13,STOCK,SERVICES,GH ZEAL LTD,476916,-375,648929087,
BEIS,Met Office,2023-03-13,STOCK,SERVICES,GH ZEAL LTD,477400,0,648929087,
BEIS,Met Office,2023-03-13,STOCK,SERVICES,GH ZEAL LTD,477400,0,648929087,
BEIS,Met Office,2023-03-13,11 SERVICES,SERVICES,GH ZEAL LTD,477400,17.5,648929087,
BEIS,Met Office,2023-03-13,TRADE CREDITORS,SERVICES,GH ZEAL LTD,477400,107.25,648929087,
BEIS,Met Office,2023-03-13,TRADE CREDITORS,SERVICES,GH ZEAL LTD,477400,266.5,648929087,
BEIS,Met Office,2023-03-13,STOCK,SERVICES,GH ZEAL LTD,475291,375,648929087,
BEIS,Met Office,2023-03-03,03 STAFF COSTS T&S,SERVICES,HCR LTD,476919,75,733 7205 46,
BEIS,Met Office,2023-03-03,03 STAFF COSTS T&S,SERVICES,HCR LTD,476920,75,733 7205 46,
BEIS,Met Office,2023-03-03,03 STAFF COSTS T&S,SERVICES,HCR LTD,476921,75,733 7205 46,
BEIS,Met Office,2023-03-03,03 STAFF COSTS T&S,SERVICES,HCR LTD,476922,75,733 7205 46,
BEIS,Met Office,2023-03-27,03 STAFF COSTS T&S,SERVICES,HCR LTD,477850,604.78,733 7205 46,
BEIS,Met Office,2023-03-16,03 STAFF COSTS T&S,SERVICES,HCR LTD,477509,8478.37,733 7205 46,
BEIS,Met Office,2023-03-16,03 STAFF COSTS T&S,SERVICES,HCR LTD,477508,11295.13,733 7205 46,
BEIS,Met Office,2023-03-23,STOCK,SERVICES,HEASON TECHNOLOGY LTD,477660,0,945605411,
BEIS,Met Office,2023-03-23,11 SERVICES,SERVICES,HEASON TECHNOLOGY LTD,477660,35,945605411,
BEIS,Met Office,2023-03-23,TRADE CREDITORS,SERVICES,HEASON TECHNOLOGY LTD,477660,5601,945605411,
BEIS,Met Office,2023-03-06,INFORMATION TECHNOLOGY,SERVICES,INMARSAT SOLUTIONS (CANADA) INC,477052,46.02,766144223,
BEIS,Met Office,2023-03-06,INFORMATION TECHNOLOGY,SERVICES,INMARSAT SOLUTIONS (CANADA) INC,477053,46.02,766144223,
BEIS,Met Office,2023-03-06,INFORMATION TECHNOLOGY,SERVICES,INMARSAT SOLUTIONS (CANADA) INC,477054,92.04,766144223,
BEIS,Met Office,2023-03-06,INFORMATION TECHNOLOGY,SERVICES,INMARSAT SOLUTIONS (CANADA) INC,477051,2115.54,766144223,
BEIS,Met Office,2023-03-24,13 MISCELLANEOUS,SERVICES,ISOTHERMAL TECHNOLOGY LTD,477793,0.01,325108979,
BEIS,Met Office,2023-03-24,10 EQUIPMENT MAINTENANCE,SERVICES,ISOTHERMAL TECHNOLOGY LTD,477839,1,325108979,
BEIS,Met Office,2023-03-24,10 EQUIPMENT MAINTENANCE,SERVICES,ISOTHERMAL TECHNOLOGY LTD,477839,1,325108979,
BEIS,Met Office,2023-03-24,10 EQUIPMENT MAINTENANCE,SERVICES,ISOTHERMAL TECHNOLOGY LTD,477840,2,325108979,
BEIS,Met Office,2023-03-24,13 MISCELLANEOUS,SERVICES,ISOTHERMAL TECHNOLOGY LTD,477792,20,325108979,
BEIS,Met Office,2023-03-24,10 EQUIPMENT MAINTENANCE,SERVICES,ISOTHERMAL TECHNOLOGY LTD,477839,297,325108979,
BEIS,Met Office,2023-03-24,10 EQUIPMENT MAINTENANCE,SERVICES,ISOTHERMAL TECHNOLOGY LTD,477840,359,325108979,
BEIS,Met Office,2023-03-24,10 EQUIPMENT MAINTENANCE,SERVICES,ISOTHERMAL TECHNOLOGY LTD,477793,566.99,325108979,
BEIS,Met Office,2023-03-24,10 EQUIPMENT MAINTENANCE,SERVICES,ISOTHERMAL TECHNOLOGY LTD,477840,683,325108979,
BEIS,Met Office,2023-03-24,10 EQUIPMENT MAINTENANCE,SERVICES,ISOTHERMAL TECHNOLOGY LTD,477794,920,325108979,
BEIS,Met Office,2023-03-24,07 EQUIPMENT,SERVICES,ISOTHERMAL TECHNOLOGY LTD,477792,6264,325108979,
BEIS,Met Office,2023-03-24,10 EQUIPMENT MAINTENANCE,SERVICES,ISOTHERMAL TECHNOLOGY LTD,477793,7659,325108979,
BEIS,Met Office,2023-03-29,10 EQUIPMENT MAINTENANCE,SERVICES,"JH ACQUISITION, LLC D.B.A. EN-SCI",10943,8902.9,-,
BEIS,Met Office,2023-03-30,07 EQUIPMENT,SERVICES,LEMO (UK) LTD,477987,15,193269240,
BEIS,Met Office,2023-03-30,07 EQUIPMENT,SERVICES,LEMO (UK) LTD,477987,152.31,193269240,
BEIS,Met Office,2023-03-30,07 EQUIPMENT,SERVICES,LEMO (UK) LTD,477987,202.65,193269240,
BEIS,Met Office,2023-03-30,07 EQUIPMENT,SERVICES,LEMO (UK) LTD,477987,253.55,193269240,
BEIS,Met Office,2023-03-30,07 EQUIPMENT,SERVICES,LEMO (UK) LTD,477987,787.6,193269240,
BEIS,Met Office,2023-03-30,07 EQUIPMENT,SERVICES,LEMO (UK) LTD,477987,841.2,193269240,
BEIS,Met Office,2023-03-30,07 EQUIPMENT,SERVICES,LEMO (UK) LTD,477987,1394.26,193269240,
BEIS,Met Office,2023-03-30,07 EQUIPMENT,SERVICES,LEMO (UK) LTD,477987,2331.2,193269240,
BEIS,Met Office,2023-03-30,07 EQUIPMENT,SERVICES,LEMO (UK) LTD,477987,2893.89,193269240,
BEIS,Met Office,2023-03-06,06 ACCOMMODATION,SERVICES,LINCOLN POLYTHENE / HOBSON HOLDINGS,477093,270,267249279,
BEIS,Met Office,2023-03-08,11 SERVICES,SERVICES,MADE TECH,477205,256755.36,938565184,
BEIS,Met Office,2023-03-22,07 EQUIPMENT,SERVICES,METOCEAN TELEMATICS LTD,10987,134.24,-,
BEIS,Met Office,2023-03-01,07 EQUIPMENT,SERVICES,METOCEAN TELEMATICS LTD,10954,158.44,-,
BEIS,Met Office,2023-03-28,11 SERVICES,SERVICES,MORSAFE LTD,477902,3240,856010741,
BEIS,Met Office,2023-03-08,13 MISCELLANEOUS,SERVICES,Munro Instruments Ltd,477249,39,977793930,
BEIS,Met Office,2023-03-08,10 EQUIPMENT MAINTENANCE,SERVICES,Munro Instruments Ltd,477249,1245,977793930,
BEIS,Met Office,2023-03-01,07 EQUIPMENT,SERVICES,NKE ELECTRONICS,24627,16872.64,FR58538107483,
BEIS,Met Office,2023-03-22,11 SERVICES,SERVICES,NORWEGIAN METEOROLOGICAL INST,24433,11302.78,NO971274042MVA,
BEIS,Met Office,2023-03-22,11 SERVICES,SERVICES,NSSL GLOBAL LTD,10971,58.17,725151948,
BEIS,Met Office,2023-03-22,11 SERVICES,SERVICES,NSSL GLOBAL LTD,10972,74.78,725151948,
BEIS,Met Office,2023-03-08,07 EQUIPMENT,SERVICES,PACIFIC GYRE,10973,5767.75,-,
BEIS,Met Office,2023-03-17,11 SERVICES,SERVICES,REDACTED � PERSONAL DATA,477611,200,-,
BEIS,Met Office,2023-03-06,13 MISCELLANEOUS,SERVICES,REDACTED � PERSONAL DATA,477073,2884,NOTVATREG,
BEIS,Met Office,2023-03-08,13 MISCELLANEOUS,SERVICES,Royal Meteorological Society,475954,-29878.33,-,
BEIS,Met Office,2023-03-08,13 MISCELLANEOUS,SERVICES,Royal Meteorological Society,475953,16.47,-,
BEIS,Met Office,2023-03-09,13 MISCELLANEOUS,SERVICES,Royal Meteorological Society,475199,29878.33,-,
BEIS,Met Office,2023-03-08,13 MISCELLANEOUS,SERVICES,Royal Meteorological Society,475953,29878.33,-,
BEIS,Met Office,2023-03-06,07 EQUIPMENT,SERVICES,SB PRECISION ENGINEERING LTD,477090,20,137923104,
BEIS,Met Office,2023-03-06,07 EQUIPMENT,SERVICES,SB PRECISION ENGINEERING LTD,477090,136,137923104,
BEIS,Met Office,2023-03-06,07 EQUIPMENT,SERVICES,SB PRECISION ENGINEERING LTD,477090,156,137923104,
BEIS,Met Office,2023-03-08,11 SERVICES,SERVICES,SKYGUARD LTD T/A PEOPLESAFE,477292,782.01,285808854,
BEIS,Met Office,2023-03-07,INFORMATION TECHNOLOGY,SERVICES,SPECIALIST COMPUTER CENTRES,477092,17555.52,313651680,
BEIS,Met Office,2023-03-29,07 EQUIPMENT,SERVICES,SWALE TECHNOLOGIES LTD,11008,16767.09,530846451,
BEIS,Met Office,2023-03-16,07 EQUIPMENT,SERVICES,SWALE TECHNOLOGIES LTD,10999,162713.11,530846451,
BEIS,Met Office,2023-03-29,STOCK,SERVICES,TOTEX CORPORATION,476373,0,-,
BEIS,Met Office,2023-03-29,STOCK,SERVICES,TOTEX CORPORATION,476373,0,-,
BEIS,Met Office,2023-03-29,STOCK,SERVICES,TOTEX CORPORATION,476373,0,-,
BEIS,Met Office,2023-03-29,STOCK,SERVICES,TOTEX CORPORATION,476373,0,-,
BEIS,Met Office,2023-03-29,STOCK,SERVICES,TOTEX CORPORATION,476373,0,-,
BEIS,Met Office,2023-03-29,STOCK,SERVICES,TOTEX CORPORATION,476373,0,-,
BEIS,Met Office,2023-03-29,STOCK,SERVICES,TOTEX CORPORATION,476373,0,-,
BEIS,Met Office,2023-03-29,STOCK,SERVICES,TOTEX CORPORATION,476373,0,-,
BEIS,Met Office,2023-03-29,TRADE CREDITORS,SERVICES,TOTEX CORPORATION,476373,320,-,
BEIS,Met Office,2023-03-29,TRADE CREDITORS,SERVICES,TOTEX CORPORATION,476373,340,-,
BEIS,Met Office,2023-03-29,TRADE CREDITORS,SERVICES,TOTEX CORPORATION,476373,819,-,
BEIS,Met Office,2023-03-29,TRADE CREDITORS,SERVICES,TOTEX CORPORATION,476373,2840,-,
BEIS,Met Office,2023-03-29,TRADE CREDITORS,SERVICES,TOTEX CORPORATION,476373,5600,-,
BEIS,Met Office,2023-03-29,TRADE CREDITORS,SERVICES,TOTEX CORPORATION,476373,6296.4,-,
BEIS,Met Office,2023-03-29,TRADE CREDITORS,SERVICES,TOTEX CORPORATION,476373,12076.8,-,
BEIS,Met Office,2023-03-29,TRADE CREDITORS,SERVICES,TOTEX CORPORATION,476373,16254,-,
BEIS,Met Office,2023-03-03,11 SERVICES,SERVICES,Trinity House,476859,1862.1,243120414,
BEIS,Met Office,2023-03-08,07 EQUIPMENT,SERVICES,UC SAN DIEGO'S SCRIPPS INST. OF OCEANOGRAPHY,10980,9612.92,-,
BEIS,Met Office,2023-03-09,11 SERVICES,SERVICES,UK CENTRE FOR ECOLOGY & HYDROLOGY (UKCEH),477277,3000,336940192,
BEIS,Met Office,2023-03-17,11 SERVICES,SERVICES,UK TELEMATICS LIMITED,477607,126.5,GB763051643,
BEIS,Met Office,2023-03-07,11 SERVICES,SERVICES,VAISALA LTD,477103,13500,336100011,
BEIS,Met Office,2023-03-31,PLANT AND EQUIPMENT,SERVICES,WELLINGTON MOTORS LTD,478035,55,666777081,
BEIS,Met Office,2023-03-31,PLANT AND EQUIPMENT,SERVICES,WELLINGTON MOTORS LTD,478035,22076.25,666777081,
BEIS,Met Office,2023-03-03,STOCK,SERVICES,WESCOL LTD,477007,0,100293524,
BEIS,Met Office,2023-03-03,11 SERVICES,SERVICES,WESCOL LTD,477007,12,100293524,
BEIS,Met Office,2023-03-03,TRADE CREDITORS,SERVICES,WESCOL LTD,477007,1230.4,100293524,
BEIS,Met Office,2023-03-16,07 EQUIPMENT,SERVICES,WILLIAM HACKETT CHAIN PRODUCTS LIMITED,477567,695,217 3054 36,
BEIS,Met Office,2023-03-16,07 EQUIPMENT,SERVICES,WILLIAM HACKETT CHAIN PRODUCTS LIMITED,477567,3286,217 3054 36,
BEIS,Met Office,2023-03-16,07 EQUIPMENT,SERVICES,WILLIAM HACKETT CHAIN PRODUCTS LIMITED,477567,5400,217 3054 36,
BEIS,Met Office,2023-03-20,11 SERVICES,SERVICES,XEIAD,477709,117,811321091,
BEIS,Met Office,2023-03-20,11 SERVICES,SERVICES,XEIAD,477709,1568,811321091,
BEIS,Met Office,2023-03-13,13 MISCELLANEOUS,SERVICES,YOUNG CALIBRATION LIMITED,477429,15,673900720,
BEIS,Met Office,2023-03-13,10 EQUIPMENT MAINTENANCE,SERVICES,YOUNG CALIBRATION LIMITED,477429,1500,673900720,
BEIS,Met Office,2023-03-29,11 SERVICES,TECHNOLOGY AND CIO,AMAZON WEB SERVICES EMEA SARL,11009,999.68,GB 283644382,
BEIS,Met Office,2023-03-08,11 SERVICES,TECHNOLOGY AND CIO,AMAZON WEB SERVICES INC.,10947,0.1,N/A,
BEIS,Met Office,2023-03-08,11 SERVICES,TECHNOLOGY AND CIO,AMAZON WEB SERVICES INC.,10951,21466.3,N/A,
BEIS,Met Office,2023-03-29,11 SERVICES,TECHNOLOGY AND CIO,BAE SYSTEMS APPLIED INTELLIGENCE LIMITED,477988,261.35,GB641407169,
BEIS,Met Office,2023-03-08,11 SERVICES,TECHNOLOGY AND CIO,BAE SYSTEMS APPLIED INTELLIGENCE LIMITED,477224,781.22,GB641407169,
BEIS,Met Office,2023-03-08,11 SERVICES,TECHNOLOGY AND CIO,BAE SYSTEMS APPLIED INTELLIGENCE LIMITED,477239,938,GB641407169,
BEIS,Met Office,2023-03-08,11 SERVICES,TECHNOLOGY AND CIO,BAE SYSTEMS APPLIED INTELLIGENCE LIMITED,477212,1082,GB641407169,
BEIS,Met Office,2023-03-03,11 SERVICES,TECHNOLOGY AND CIO,BAE SYSTEMS APPLIED INTELLIGENCE LIMITED,476944,1289.75,GB641407169,
BEIS,Met Office,2023-03-02,11 SERVICES,TECHNOLOGY AND CIO,BAE SYSTEMS APPLIED INTELLIGENCE LIMITED,476812,1390.8,GB641407169,
BEIS,Met Office,2023-03-03,11 SERVICES,TECHNOLOGY AND CIO,BAE SYSTEMS APPLIED INTELLIGENCE LIMITED,476943,1453.75,GB641407169,
BEIS,Met Office,2023-03-02,11 SERVICES,TECHNOLOGY AND CIO,BAE SYSTEMS APPLIED INTELLIGENCE LIMITED,475374,2311.12,GB641407169,
BEIS,Met Office,2023-03-03,11 SERVICES,TECHNOLOGY AND CIO,BAE SYSTEMS APPLIED INTELLIGENCE LIMITED,476938,4690,GB641407169,
BEIS,Met Office,2023-03-06,11 SERVICES,TECHNOLOGY AND CIO,BAE SYSTEMS APPLIED INTELLIGENCE LIMITED,477078,6492,GB641407169,
BEIS,Met Office,2023-03-03,11 SERVICES,TECHNOLOGY AND CIO,BAE SYSTEMS APPLIED INTELLIGENCE LIMITED,476945,6581.25,GB641407169,
BEIS,Met Office,2023-03-03,11 SERVICES,TECHNOLOGY AND CIO,BAE SYSTEMS APPLIED INTELLIGENCE LIMITED,476942,7755,GB641407169,
BEIS,Met Office,2023-03-03,11 SERVICES,TECHNOLOGY AND CIO,BAE SYSTEMS APPLIED INTELLIGENCE LIMITED,476940,8115,GB641407169,
BEIS,Met Office,2023-03-08,11 SERVICES,TECHNOLOGY AND CIO,BAE SYSTEMS APPLIED INTELLIGENCE LIMITED,477214,8550,GB641407169,
BEIS,Met Office,2023-03-08,11 SERVICES,TECHNOLOGY AND CIO,BAE SYSTEMS APPLIED INTELLIGENCE LIMITED,477221,8550,GB641407169,
BEIS,Met Office,2023-03-07,11 SERVICES,TECHNOLOGY AND CIO,BAE SYSTEMS APPLIED INTELLIGENCE LIMITED,477155,8656,GB641407169,
BEIS,Met Office,2023-03-06,11 SERVICES,TECHNOLOGY AND CIO,BAE SYSTEMS APPLIED INTELLIGENCE LIMITED,477075,8775,GB641407169,
BEIS,Met Office,2023-03-08,11 SERVICES,TECHNOLOGY AND CIO,BAE SYSTEMS APPLIED INTELLIGENCE LIMITED,477220,9000,GB641407169,
BEIS,Met Office,2023-03-03,11 SERVICES,TECHNOLOGY AND CIO,BAE SYSTEMS APPLIED INTELLIGENCE LIMITED,476946,9570,GB641407169,
BEIS,Met Office,2023-03-06,11 SERVICES,TECHNOLOGY AND CIO,BAE SYSTEMS APPLIED INTELLIGENCE LIMITED,477079,9738,GB641407169,
BEIS,Met Office,2023-03-08,11 SERVICES,TECHNOLOGY AND CIO,BAE SYSTEMS APPLIED INTELLIGENCE LIMITED,477216,10395,GB641407169,
BEIS,Met Office,2023-03-08,11 SERVICES,TECHNOLOGY AND CIO,BAE SYSTEMS APPLIED INTELLIGENCE LIMITED,477222,10820,GB641407169,
BEIS,Met Office,2023-03-08,11 SERVICES,TECHNOLOGY AND CIO,BAE SYSTEMS APPLIED INTELLIGENCE LIMITED,477218,10889.89,GB641407169,
BEIS,Met Office,2023-03-08,11 SERVICES,TECHNOLOGY AND CIO,BAE SYSTEMS APPLIED INTELLIGENCE LIMITED,477223,11137.5,GB641407169,
BEIS,Met Office,2023-03-08,11 SERVICES,TECHNOLOGY AND CIO,BAE SYSTEMS APPLIED INTELLIGENCE LIMITED,477217,11220,GB641407169,
BEIS,Met Office,2023-03-06,11 SERVICES,TECHNOLOGY AND CIO,BAE SYSTEMS APPLIED INTELLIGENCE LIMITED,477081,11256,GB641407169,
BEIS,Met Office,2023-03-08,11 SERVICES,TECHNOLOGY AND CIO,BAE SYSTEMS APPLIED INTELLIGENCE LIMITED,477219,11880,GB641407169,
BEIS,Met Office,2023-03-03,11 SERVICES,TECHNOLOGY AND CIO,BAE SYSTEMS APPLIED INTELLIGENCE LIMITED,476947,12375,GB641407169,
BEIS,Met Office,2023-03-07,11 SERVICES,TECHNOLOGY AND CIO,BAE SYSTEMS APPLIED INTELLIGENCE LIMITED,477154,13200,GB641407169,
BEIS,Met Office,2023-03-08,11 SERVICES,TECHNOLOGY AND CIO,BAE SYSTEMS APPLIED INTELLIGENCE LIMITED,477213,13200,GB641407169,
BEIS,Met Office,2023-03-08,11 SERVICES,TECHNOLOGY AND CIO,BAE SYSTEMS APPLIED INTELLIGENCE LIMITED,477215,13200,GB641407169,
BEIS,Met Office,2023-03-03,11 SERVICES,TECHNOLOGY AND CIO,BAE SYSTEMS APPLIED INTELLIGENCE LIMITED,476937,13601,GB641407169,
BEIS,Met Office,2023-03-20,11 SERVICES,TECHNOLOGY AND CIO,BAE SYSTEMS APPLIED INTELLIGENCE LIMITED,476257,15946,GB641407169,
BEIS,Met Office,2023-03-06,11 SERVICES,TECHNOLOGY AND CIO,BAE SYSTEMS APPLIED INTELLIGENCE LIMITED,477077,16150,GB641407169,
BEIS,Met Office,2023-03-03,11 SERVICES,TECHNOLOGY AND CIO,BAE SYSTEMS APPLIED INTELLIGENCE LIMITED,476941,16884,GB641407169,
BEIS,Met Office,2023-03-06,11 SERVICES,TECHNOLOGY AND CIO,BAE SYSTEMS APPLIED INTELLIGENCE LIMITED,477080,16884,GB641407169,
BEIS,Met Office,2023-03-06,11 SERVICES,TECHNOLOGY AND CIO,BAE SYSTEMS APPLIED INTELLIGENCE LIMITED,477076,17000,GB641407169,
BEIS,Met Office,2023-03-03,11 SERVICES,TECHNOLOGY AND CIO,BAE SYSTEMS APPLIED INTELLIGENCE LIMITED,476935,18760,GB641407169,
BEIS,Met Office,2023-03-03,11 SERVICES,TECHNOLOGY AND CIO,BAE SYSTEMS APPLIED INTELLIGENCE LIMITED,476936,18760,GB641407169,
BEIS,Met Office,2023-03-10,11 SERVICES,TECHNOLOGY AND CIO,BAE SYSTEMS APPLIED INTELLIGENCE LIMITED,477225,18760,GB641407169,
BEIS,Met Office,2023-03-10,11 SERVICES,TECHNOLOGY AND CIO,BAE SYSTEMS APPLIED INTELLIGENCE LIMITED,477226,18760,GB641407169,
BEIS,Met Office,2023-03-20,11 SERVICES,TECHNOLOGY AND CIO,BAE SYSTEMS APPLIED INTELLIGENCE LIMITED,476256,21574,GB641407169,
BEIS,Met Office,2023-03-03,11 SERVICES,TECHNOLOGY AND CIO,BAE SYSTEMS APPLIED INTELLIGENCE LIMITED,476939,22097,GB641407169,
BEIS,Met Office,2023-03-08,11 SERVICES,TECHNOLOGY AND CIO,BJSS LIMITED,477207,21370.5,613295452,
BEIS,Met Office,2023-03-08,11 SERVICES,TECHNOLOGY AND CIO,BJSS LIMITED,477208,69898.5,613295452,
BEIS,Met Office,2023-03-06,11 SERVICES,TECHNOLOGY AND CIO,BJSS LIMITED,476958,81553.5,613295452,
BEIS,Met Office,2023-03-06,11 SERVICES,TECHNOLOGY AND CIO,BJSS LIMITED,476959,138603.5,613295452,
BEIS,Met Office,2023-03-29,08 SOFTWARE LICENCES,TECHNOLOGY AND CIO,BOXXE,477903,7915.83,734245248,
BEIS,Met Office,2023-03-17,11 SERVICES,TECHNOLOGY AND CIO,CLOUDREACH EUROPE LIMITED,477550,3499.06,978187168,
BEIS,Met Office,2023-03-13,11 SERVICES,TECHNOLOGY AND CIO,CLOUDREACH EUROPE LIMITED,477379,5150,978187168,
BEIS,Met Office,2023-03-01,07 EQUIPMENT,TECHNOLOGY AND CIO,COMPUTACENTER (UK) LTD,476831,561.24,490334648,
BEIS,Met Office,2023-03-01,10 EQUIPMENT MAINTENANCE,TECHNOLOGY AND CIO,COMPUTACENTER (UK) LTD,476879,850.28,490334648,
BEIS,Met Office,2023-03-02,10 EQUIPMENT MAINTENANCE,TECHNOLOGY AND CIO,COMPUTACENTER (UK) LTD,476928,2143.53,490334648,
BEIS,Met Office,2023-03-03,10 EQUIPMENT MAINTENANCE,TECHNOLOGY AND CIO,COMPUTACENTER (UK) LTD,477049,3527.28,490334648,
BEIS,Met Office,2023-03-30,10 EQUIPMENT MAINTENANCE,TECHNOLOGY AND CIO,COMPUTACENTER (UK) LTD,478045,3707.66,490334648,
BEIS,Met Office,2023-03-02,07 EQUIPMENT,TECHNOLOGY AND CIO,COMPUTACENTER (UK) LTD,476927,3918,490334648,
BEIS,Met Office,2023-03-20,10 EQUIPMENT MAINTENANCE,TECHNOLOGY AND CIO,COMPUTACENTER (UK) LTD,477670,4770.56,490334648,
BEIS,Met Office,2023-03-01,07 EQUIPMENT,TECHNOLOGY AND CIO,COMPUTACENTER (UK) LTD,476880,4909.2,490334648,
BEIS,Met Office,2023-03-24,11 SERVICES,TECHNOLOGY AND CIO,COMPUTACENTER (UK) LTD,477835,6000,490334648,
BEIS,Met Office,2023-03-08,11 SERVICES,TECHNOLOGY AND CIO,COMPUTACENTER (UK) LTD,477274,7186.02,490334648,
BEIS,Met Office,2023-03-20,07 EQUIPMENT,TECHNOLOGY AND CIO,COMPUTACENTER (UK) LTD,477670,7979.88,490334648,
BEIS,Met Office,2023-03-28,11 SERVICES,TECHNOLOGY AND CIO,COMPUTACENTER (UK) LTD,477937,9720,490334648,
BEIS,Met Office,2023-03-16,07 EQUIPMENT,TECHNOLOGY AND CIO,COMPUTACENTER (UK) LTD,477510,9903.96,490334648,
BEIS,Met Office,2023-03-30,INFORMATION TECHNOLOGY,TECHNOLOGY AND CIO,COMPUTACENTER (UK) LTD,477672,38815.87,490334648,
BEIS,Met Office,2023-03-02,11 SERVICES,TECHNOLOGY AND CIO,FLYFORM LTD,476961,15920,237333808,
BEIS,Met Office,2023-03-16,11 SERVICES,TECHNOLOGY AND CIO,GCHQ PUBLIC ACCOUNT - CESG,477534,17339.03,888813658,
BEIS,Met Office,2023-03-22,08 SOFTWARE LICENCES,TECHNOLOGY AND CIO,HARMAN CONNECTED SERVICES,10982,29958.87,-,
BEIS,Met Office,2023-03-22,08 SOFTWARE LICENCES,TECHNOLOGY AND CIO,HARMAN CONNECTED SERVICES,10982,44938.3,-,
BEIS,Met Office,2023-03-29,10 EQUIPMENT MAINTENANCE,TECHNOLOGY AND CIO,Hewlett Packard Ltd,477947,272830.32,314149679,
BEIS,Met Office,2023-03-08,08 SOFTWARE LICENCES,TECHNOLOGY AND CIO,"IBL SOFTWARE ENGINEERING, SPOL S.R.O.",24647,1789.2,SK2020241883,
BEIS,Met Office,2023-03-03,08 SOFTWARE LICENCES,TECHNOLOGY AND CIO,Ibm United Kingdom Ltd,477048,7253.6,107328000,
BEIS,Met Office,2023-03-06,11 SERVICES,TECHNOLOGY AND CIO,Ibm United Kingdom Ltd,476931,13440.5,107328000,
BEIS,Met Office,2023-03-14,11 SERVICES,TECHNOLOGY AND CIO,LAFOSSE ASSOCIATES,477450,3375,GB 360026537,
BEIS,Met Office,2023-03-16,11 SERVICES,TECHNOLOGY AND CIO,LAFOSSE ASSOCIATES,477469,5775,GB 360026537,
BEIS,Met Office,2023-03-08,11 SERVICES,TECHNOLOGY AND CIO,LAFOSSE ASSOCIATES,476808,10125,GB 360026537,
BEIS,Met Office,2023-03-13,11 SERVICES,TECHNOLOGY AND CIO,LAFOSSE ASSOCIATES,477451,13200,GB 360026537,
BEIS,Met Office,2023-03-08,11 SERVICES,TECHNOLOGY AND CIO,LAFOSSE ASSOCIATES,477045,13500,GB 360026537,
BEIS,Met Office,2023-03-02,11 SERVICES,TECHNOLOGY AND CIO,NORBECK LTD,473647,3622.12,543334559,
BEIS,Met Office,2023-03-13,08 SOFTWARE LICENCES,TECHNOLOGY AND CIO,ORACLE CORPORATION UK LTD,477371,1287.95,391313073,
BEIS,Met Office,2023-03-13,08 SOFTWARE LICENCES,TECHNOLOGY AND CIO,ORACLE CORPORATION UK LTD,477375,1829.99,391313073,
BEIS,Met Office,2023-03-13,08 SOFTWARE LICENCES,TECHNOLOGY AND CIO,ORACLE CORPORATION UK LTD,477372,2889.34,391313073,
BEIS,Met Office,2023-03-13,08 SOFTWARE LICENCES,TECHNOLOGY AND CIO,ORACLE CORPORATION UK LTD,477373,3719.99,391313073,
BEIS,Met Office,2023-03-13,08 SOFTWARE LICENCES,TECHNOLOGY AND CIO,ORACLE CORPORATION UK LTD,477378,3773.56,391313073,
BEIS,Met Office,2023-03-13,08 SOFTWARE LICENCES,TECHNOLOGY AND CIO,ORACLE CORPORATION UK LTD,477374,4983.67,391313073,
BEIS,Met Office,2023-03-06,08 SOFTWARE LICENCES,TECHNOLOGY AND CIO,ORACLE CORPORATION UK LTD,477082,6382.55,391313073,
BEIS,Met Office,2023-03-13,08 SOFTWARE LICENCES,TECHNOLOGY AND CIO,ORACLE CORPORATION UK LTD,477376,13507.82,391313073,
BEIS,Met Office,2023-03-13,08 SOFTWARE LICENCES,TECHNOLOGY AND CIO,ORACLE CORPORATION UK LTD,477377,19245.87,391313073,
BEIS,Met Office,2023-03-27,10 EQUIPMENT MAINTENANCE,TECHNOLOGY AND CIO,ORACLE CORPORATION UK LTD,477872,57053.17,391313073,
BEIS,Met Office,2023-03-08,08 SOFTWARE LICENCES,TECHNOLOGY AND CIO,PRESENTATION CARTOGRAPHY LTD,477202,268.58,-,
BEIS,Met Office,2023-03-08,08 SOFTWARE LICENCES,TECHNOLOGY AND CIO,PRESENTATION CARTOGRAPHY LTD,477202,1074.32,-,
BEIS,Met Office,2023-03-10,11 SERVICES,TECHNOLOGY AND CIO,QA LTD,477236,600,864455303,
BEIS,Met Office,2023-03-24,11 SERVICES,TECHNOLOGY AND CIO,QA LTD,477737,26730,864455303,
BEIS,Met Office,2023-03-17,11 SERVICES,TECHNOLOGY AND CIO,QA LTD,477529,31970,864455303,
BEIS,Met Office,2023-03-17,11 SERVICES,TECHNOLOGY AND CIO,QA LTD,477530,51600,864455303,
BEIS,Met Office,2023-03-01,11 SERVICES,TECHNOLOGY AND CIO,QA LTD,476768,56100,864455303,
BEIS,Met Office,2023-03-29,08 SOFTWARE LICENCES,TECHNOLOGY AND CIO,SCHEDMD LLC,11004,9634.36,-,
BEIS,Met Office,2023-03-06,08 SOFTWARE LICENCES,TECHNOLOGY AND CIO,SECTIGO LTD,477055,9100,834875295,
BEIS,Met Office,2023-03-20,11 SERVICES,TECHNOLOGY AND CIO,SPECIALIST COMPUTER CENTRES,477659,14413.35,313651680,
BEIS,Met Office,2023-03-07,08 SOFTWARE LICENCES,TECHNOLOGY AND CIO,SPECIALIST COMPUTER CENTRES,477041,85500,313651680,
BEIS,Met Office,2023-03-07,08 SOFTWARE LICENCES,TECHNOLOGY AND CIO,SPECIALIST COMPUTER CENTRES,477041,172368,313651680,
BEIS,Met Office,2023-03-07,08 SOFTWARE LICENCES,TECHNOLOGY AND CIO,SPECIALIST COMPUTER CENTRES,477041,211183.19,313651680,
BEIS,Met Office,2023-03-07,08 SOFTWARE LICENCES,TECHNOLOGY AND CIO,SPECIALIST COMPUTER CENTRES,477041,840958.04,313651680,
BEIS,Met Office,2023-03-10,11 SERVICES,TECHNOLOGY AND CIO,SSE CONTRACTING LTD,477134,10912.87,382894546,
BEIS,Met Office,2023-03-29,11 SERVICES,TECHNOLOGY AND CIO,THE STRENGTHS PEOPLE LTD,477970,1650,206868488,
BEIS,Met Office,2023-03-02,11 SERVICES,TECHNOLOGY AND CIO,WIREFAST LTD,476956,125.73,749536001,
BEIS,Met Office,2023-03-02,11 SERVICES,TECHNOLOGY AND CIO,WIREFAST LTD,476953,1054.28,749536001,
BEIS,Met Office,2023-03-02,11 SERVICES,TECHNOLOGY AND CIO,WIREFAST LTD,476957,1113.38,749536001,
